Workbook

Sheet Master
C1: EMPLOYEE DETAIL
A3: OFFICE NAME :- | C3: Mahatma Gandhi Government School (English Medium) BAR , Beawar
A4: Old 7th Pay DA % :- | C4: 55 | E4: Old 7th Pay HRA % :- | H4: 10 | J4: Old & New Video Link
A5: New 7th Pay DA % :- | C5: 58 | E5: New 7th Pay HRA % :- | H5: 10
J6: https://youtu.be/PBaVmcX26GU
A7: S.R. NO. | B7: EMPLOYEE NAME | C7: POST | D7: How Many Months make Arrear | E7: 7th Pay Basic | F7: GPF / GPF-2004 | G7: INCOME TAX | H7: किस माह से DA एरियर बनाना है | J7: New DA ARREAR Excel Sheet Release on 05-10-2025
A8: 1 | B8: USHA PALIYA | C8: PRINCIPAL | D8: 3 | E8: 71400 | F8: GPF-2004 | H8: 2025-07-01 | J8: https://youtu.be/9OVRI3o4WG4 | N8: परम पूज्य गुरुदेव वासुदेवजी महाराज | AA8: 2025-07-01
A9: 2 | B9: DEVANAND | C9: LECTURER | D9: 3 | E9: 71300 | F9: GPF | H9: 2025-07-01 | AA9: 2025-08-01
A10: 3 | B10: SEEMA CHHABA | C10: LECTURER | D10: 5 | E10: 46100 | F10: GPF-2004 | H10: 2025-07-01 | AA10: 2025-09-01
A11: 4 | B11: SURESH CHAND SINGARIYA | C11: Sr. Teacher | D11: 3 | E11: 63100 | F11: GPF-2004 | H11: 2025-07-01 | AA11: 2025-10-01
A12: 5 | B12: HEERA LAL JAT | C12: Sr. Teacher | D12: 3 | E12: 61300 | F12: GPF | H12: 2025-07-01 | M12: Programmed By :- | AA12: 2025-11-01
A13: 6 | B13: RAKESH KUMAR | C13: Sr. Teacher | D13: 2 | E13: 41300 | F13: GPF-2004 | H13: 2025-08-01 | AA13: 2025-12-01
A14: 7 | B14: ABHIMANYU SINGH | C14: TEACHER L-1 | D14: 1 | E14: 67000 | F14: GPF | H14: 2025-09-01 | M14: HEERA LAL JAT
A15: 8 | B15: PUSHPENDRA | C15: TEACHER L-1 | D15: 3 | E15: 46500 | F15: GPF | H15: 2025-07-01 | M15: Sr. Teacher at MGGS BAR (Beawar)
A16: 9 | B16: MANOJ KUMAR PANCHORI | C16: TEACHER L-2 | D16: 3 | E16: 50800 | F16: GPF-2004 | H16: 2025-07-01 | M16: V./P. - CHANDAWAL NAGAR , SOJAT (PALI)
A17: 10 | B17: PRADIP SINGH | C17: TEACHER L-1 | D17: 3 | E17: 50800 | F17: GPF-2004 | H17: 2025-07-01 | M17: Email
A18: 11 | B18: MANDIP SINGH BHULLAR | C18: P.T.I. IIIrd | D18: 3 | E18: 35800 | F18: GPF-2004 | H18: 2025-07-01 | M18: heeralaljatchandawal@gmail.com
A19: 12 | B19: LALIT KUMAR | C19: P.T.I. IInd | D19: 3 | E19: 45100 | F19: GPF | H19: 2025-07-01
A20: 13 | B20: SAMPAT RAJ | C20: Sr. Teacher | D20: 3 | E20: 67200 | F20: GPF | H20: 2025-07-01
A21: 14 | B21: BAHADURRAM | C21: UDC | D21: 3 | E21: 38000 | F21: GPF-2004 | H21: 2025-07-01
A22: 15 | B22: HEMANT | C22: LDC | D22: 3 | E22: 36900 | F22: GPF-2004 | H22: 2025-07-01

Sheet Arrear
W1: =IF(ISNA(VLOOKUP($D$3,Master!A$8:N$127,4,FALSE)),"",VLOOKUP($D$3,Master!A$8:AH$127,4,FALSE)) -> 3 | X1: =IF(ISNA(VLOOKUP($D$3,Master!A$8:N$127,6,FALSE)),"",VLOOKUP($D$3,Master!A$8:AH$127,6,FALSE)) -> GPF | Y1: GPF-2004 | Z1: GPF | AA1: =IF(ISNA(VLOOKUP($D$3,Master!A$8:N$127,7,FALSE)),"",VLOOKUP($D$3,Master!A$8:AH$127,7,FALSE)) -> 0
A2: =IF(AND(Master!C3=""),"",CONCATENATE("Office Of ",Master!C3)) -> Office Of Mahatma Gandhi Government School (English Medium) BAR , Beawar | X2: =IF(ISNA(VLOOKUP($D$3,Master!A$8:N$127,8,FALSE)),"",VLOOKUP($D$3,Master!A$8:AH$127,8,FALSE)) -> 45839 | Y2: YES
C3: Sr. No. :- | D3: 5 | E3: Name of Employee :- | J3: =IF(ISNA(VLOOKUP($D$3,Master!A$8:N$127,2,FALSE)),"",VLOOKUP($D$3,Master!A$8:AH$127,2,FALSE)) -> HEERA LAL JAT | O3: POST:- | P3: =IF(ISNA(VLOOKUP($D$3,Master!A$8:N$127,3,FALSE)),"",VLOOKUP($D$3,Master!A$8:AH$127,3,FALSE)) -> Sr. Teacher
G4: DA (55% to 58%) Drawn Statement
A6: Serial No. | B6: Month & Year | C6: Pay Due | G6: Pay Drawn | K6: Pay Difference | O6: Deducation | R6: To be paid in Cash Col. 14 form 18 | S6: Treasury Bill@ Voucher No.& Date
C7: Basic | D7: Dearness Allowance | E7: H.R.A. | F7: Total Col. 3 to 5 | G7: Basic | H7: Dearness Allowance | I7: H.R.A. | J7: Total Col. 7 to 9 | K7: Basic Pay | L7: Dearness Allowance | M7: H.R.A. | N7: Total Col. 11 to 13 | O7: =IF(X1="GPF","GPF ","GPF-2004 ") -> GPF | P7: Income Tax / TDS | Q7: Total of Dedu ction
A8: 1 | B8: 2 | C8: 3 | D8: 4 | E8: 5 | F8: 6 | G8: 7 | H8: 8 | I8: 9 | J8: 10 | K8: 11 | L8: 12 | M8: 13 | N8: 14 | O8: 15 | P8: 17 | Q8: 18 | R8: 19 | S8: 20
A9: 1 | B9: =IF(AND($D$3=""),"",X9) -> 2025-07-01 | C9: =IF(ISNA(VLOOKUP(D3,Master!A$8:N$127,5,FALSE)),"",VLOOKUP($D$3,Master!A$8:AH$127,5,FALSE)) -> 61300 | D9: =IF(AND(C9=""),"",IF(AND($D$3=""),"",ROUND(C9*Master!C$5%,0))) -> 35554 | E9: =IF(AND(C9=""),"",IF(AND($D$3=""),"",ROUND(C9*Master!H$5%,0))) -> 6130 | F9: =IF(AND(C9=""),"",SUM(C9:E9)) -> 102984 | G9: =IF(ISNA(VLOOKUP($D$3,Master!A$8:N$127,5,FALSE)),"",VLOOKUP($D$3,Master!A$8:AH$127,5,FALSE)) -> 61300 | H9: =IF(AND(G9=""),"",IF(AND($D$3=""),"",ROUND(G9*Master!C$4%,0))) -> 33715 | I9: =IF(AND(G9=""),"",IF(AND($D$3=""),"",ROUND(G9*Master!H$4%,0))) -> 6130 | J9: =IF(AND(C9=""),"",SUM(G9:I9)) -> 101145 | K9: =IF(AND(C9=""),"",IF(AND(G9=""),"",C9-G9)) -> 0 | L9: 1839 | M9: 0 | N9: 1839 | O9: =IF(AND(C9=""),"",IF(OR(B9=$Y$9,B9=$Y$10,B9=$Y$11,B9=$Y$12),N9-P9,"0")) -> 1839 | P9: =IF(AND($D$3=""),"",IF(AND(N9=""),"",ROUND(N9*AA$1%,0))) -> 0 | Q9: =IF(AND($D$3=""),"",IF(AND(C9=""),"",IF(AND(O9=""),"",SUM(O9,P9)))) -> 1839 | R9: =IF(AND(N9=""),"",IF(AND(Q9=""),"",N9-Q9)) -> 0 | X9: =IF(ISNA(VLOOKUP($D$3,Master!A$8:N$127,8,FALSE)),"",VLOOKUP($D$3,Master!A$8:AH$127,8,FALSE)) -> 2025-07-01 | Y9: 2025-07-01
A10: 2 | B10: =IF(AND($D$3=""),"",IF(AND(Arrear!W$1<2),"",X10)) -> 2025-08-01 | C10: =IF(AND($D$3=""),"",IF(AND(Arrear!W$1<2),"",Arrear!C9)) -> 61300 | D10: =IF(AND(C10=""),"",IF(AND($D$3=""),"",ROUND(C10*Master!C$5%,0))) -> 35554 | E10: =IF(AND(C10=""),"",IF(AND($D$3=""),"",ROUND(C10*Master!H$5%,0))) -> 6130 | F10: 102984 | G10: =IF(AND($D$3=""),"",IF(AND(Arrear!W$1<2),"",Arrear!C10)) -> 61300 | H10: =IF(AND(G10=""),"",IF(AND($D$3=""),"",ROUND(G10*Master!C$4%,0))) -> 33715 | I10: =IF(AND(G10=""),"",IF(AND($D$3=""),"",ROUND(G10*Master!H$4%,0))) -> 6130 | J10: 101145 | K10: 0 | L10: 1839 | M10: 0 | N10: 1839 | O10: =IF(AND(C10=""),"",IF(OR(B10=$Y$9,B10=$Y$10,B10=$Y$11,B10=$Y$12),N10-P10,"0")) -> 1839 | P10: 0 | Q10: =IF(AND($D$3=""),"",IF(AND(C10=""),"",IF(AND(O10=""),"",SUM(O10,P10)))) -> 1839 | R10: =IF(AND(N10=""),"",IF(AND(Q10=""),"",N10-Q10)) -> 0 | X10: =DATE(YEAR(X9),MONTH(X9)+1,DAY(X9)) -> 2025-08-01 | Y10: 2025-08-01
A11: 3 | B11: =IF(AND($D$3=""),"",IF(AND(Arrear!W$1<3),"",X11)) -> 2025-09-01 | C11: =IF(AND($D$3=""),"",IF(AND(Arrear!W$1<3),"",Arrear!C10)) -> 61300 | D11: =IF(AND(C11=""),"",IF(AND($D$3=""),"",ROUND(C11*Master!C$5%,0))) -> 35554 | E11: =IF(AND(C11=""),"",IF(AND($D$3=""),"",ROUND(C11*Master!H$5%,0))) -> 6130 | F11: 102984 | G11: =IF(AND($D$3=""),"",IF(AND(Arrear!W$1<3),"",Arrear!C11)) -> 61300 | H11: =IF(AND(G11=""),"",IF(AND($D$3=""),"",ROUND(G11*Master!C$4%,0))) -> 33715 | I11: =IF(AND(G11=""),"",IF(AND($D$3=""),"",ROUND(G11*Master!H$4%,0))) -> 6130 | J11: 101145 | K11: 0 | L11: 1839 | M11: 0 | N11: 1839 | O11: 1839 | P11: 0 | Q11: 1839 | R11: 0 | X11: =DATE(YEAR(X10),MONTH(X10)+1,DAY(X10)) -> 2025-09-01 | Y11: 2025-09-01
A12: 4 | B12: =IF(AND($D$3=""),"",IF(AND(Arrear!W$1<4),"",X12)) ->  | C12: =IF(AND($D$3=""),"",IF(AND(Arrear!W$1<4),"",Arrear!C11)) ->  | D12: =IF(AND(C12=""),"",IF(AND($D$3=""),"",ROUND(C12*Master!C$5%,0))) ->  | E12: =IF(AND(C12=""),"",IF(AND($D$3=""),"",ROUND(C12*Master!H$5%,0))) ->  | G12: =IF(AND($D$3=""),"",IF(AND(Arrear!W$1<4),"",Arrear!C12)) ->  | H12: =IF(AND(G12=""),"",IF(AND($D$3=""),"",ROUND(G12*Master!C$4%,0))) ->  | I12: =IF(AND(G12=""),"",IF(AND($D$3=""),"",ROUND(G12*Master!H$4%,0))) ->  | X12: 2025-10-01
A13: 5 | B13: =IF(AND($D$3=""),"",IF(AND(Arrear!W$1<5),"",X13)) ->  | C13: =IF(AND($D$3=""),"",IF(AND(Arrear!W$1<5),"",Arrear!C12)) ->  | D13: =IF(AND(C13=""),"",IF(AND($D$3=""),"",ROUND(C13*Master!C$5%,0))) ->  | E13: =IF(AND(C13=""),"",IF(AND($D$3=""),"",ROUND(C13*Master!H$5%,0))) ->  | G13: =IF(AND($D$3=""),"",IF(AND(Arrear!W$1<5),"",Arrear!C13)) ->  | H13: =IF(AND(G13=""),"",IF(AND($D$3=""),"",ROUND(G13*Master!C$4%,0))) ->  | I13: =IF(AND(G13=""),"",IF(AND($D$3=""),"",ROUND(G13*Master!H$4%,0))) ->  | X13: 2025-11-01
A14: 6 | B14: =IF(AND($D$3=""),"",IF(AND(Arrear!W$1<6),"",X14)) ->  | C14: =IF(AND($D$3=""),"",IF(AND(Arrear!W$1<6),"",Arrear!C13)) ->  | D14: =IF(AND(C14=""),"",IF(AND($D$3=""),"",ROUND(C14*Master!C$5%,0))) ->  | E14: =IF(AND(C14=""),"",IF(AND($D$3=""),"",ROUND(C14*Master!H$5%,0))) ->  | G14: =IF(AND($D$3=""),"",IF(AND(Arrear!W$1<6),"",Arrear!C14)) ->  | H14: =IF(AND(G14=""),"",IF(AND($D$3=""),"",ROUND(G14*Master!C$4%,0))) ->  | I14: =IF(AND(G14=""),"",IF(AND($D$3=""),"",ROUND(G14*Master!H$4%,0))) ->  | X14: 2025-12-01
A15: TOTAL | C15: =IF(AND($D$3=""),"",SUM(C9:C14)) -> 183900 | D15: =IF(AND($D$3=""),"",SUM(D9:D14)) -> 106662 | E15: 18390 | F15: 308952 | G15: 183900 | H15: 101145 | I15: 18390 | J15: 303435 | K15: 0 | L15: 5517 | M15: 0 | N15: 5517 | O15: 5517 | P15: 0 | Q15: 5517 | R15: =IF(AND($D$3=""),"",SUM(R9:R14)) -> 0 | X15: 2026-01-01
C16: =IF(X1="GPF","Amount in Words Deposite in GPF :-","Amount in Words Deposite in GPF-2004 :-") -> Amount in Words Deposite in GPF :- | J16: =IF(AND(D3=""),"",IF(AND(O15=0),"ZERO ONLY","( Rs. "&LOOKUP(IF(INT(RIGHT(O15,7)/100000)>19,INT(RIGHT(O15,7)/1000000),IF(INT(RIGHT(O15,7)/100000)>=10,INT(RIGHT(O15,7)/100000),0)),{0,1,2,3,4,5,6,7,8,9,10,11,12,13,14,15,16,17,18,19},{""," TEN "," TWENTY "," THIRTY "," FOURTY "," FIFTY "," SIXTY "," SEVENTY "," EIGHTY "," NINETY "," TEN "," ELEVEN "," TWELVE "," THIRTEEN "," FOURTEEN "," FIFTEEN "," SIXTEEN"," SEVENTEEN"," EIGHTEEN "," NINETEEN "})&IF((IF(INT(RIGHT(O15,7)/100000)>19,INT(RIGHT(O15,7)/1000000),IF(INT(RIGHT(O15,7)/100000)>=10,INT(RIGHT(O15,7)/100000),0))+IF(INT(RIGHT(O15,7)/100000)>19,INT(RIGHT(O15,6)/100000),IF(INT(RIGHT(O15,7)/100000)>10,0,INT(RIGHT(O15,6)/100000))))>0,LOOKUP(IF(INT(RIGHT(O15,7)/100000)>19,INT(RIGHT(O15,6)/100000),IF(INT(RIGHT(O15,7)/100000)>10,0,INT(RIGHT(O15,6)/100000))),{0,1,2,3,4,5,6,7,8,9,10,11,12,13,14,15,16,17,18,19},{""," ONE "," TWO "," THREE "," FOUR "," FIVE "," SIX "," SEVEN "," EIGHT "," NINE "," TEN "," ELEVEN "," TWELVE "," THIRTEEN "," FOURTEEN "," FIFTEEN "," SIXTEEN"," SEVENTEEN"," EIGHTEEN "," NINETEEN "})&" Lac. "," ")&LOOKUP(IF(INT(RIGHT(O15,5)/1000)>19,INT(RIGHT(O15,5)/10000),IF(INT(RIGHT(O15,5)/1000)>=10,INT(RIGHT(O15,5)/1000),0)),{0,1,2,3,4,5,6,7,8,9,10,11,12,13,14,15,16,17,18,19},{""," TEN "," TWENTY "," THIRTY "," FOURTY "," FIFTY "," SIXTY "," SEVENTY "," EIGHTY "," NINETY "," TEN "," ELEVEN "," TWELVE "," THIRTEEN "," FOURTEEN "," FIFTEEN "," SIXTEEN"," SEVENTEEN"," EIGHTEEN "," NINETEEN "})&IF((IF(INT(RIGHT(O15,5)/1000)>19,INT(RIGHT(O15,4)/1000),IF(INT(RIGHT(O15,5)/1000)>10,0,INT(RIGHT(O15,4)/1000)))+IF(INT(RIGHT(O15,5)/1000)>19,INT(RIGHT(O15,5)/10000),IF(INT(RIGHT(O15,5)/1000)>=10,INT(RIGHT(O15,5)/1000),0)))>0,LOOKUP(IF(INT(RIGHT(O15,5)/1000)>19,INT(RIGHT(O15,4)/1000),IF(INT(RIGHT(O15,5)/1000)>10,0,INT(RIGHT(O15,4)/1000))),{0,1,2,3,4,5,6,7,8,9,10,11,12,13,14,15,16,17,18,19},{""," ONE "," TWO "," THREE "," FOUR "," FIVE "," SIX "," SEVEN "," EIGHT "," NINE "," TEN "," ELEVEN "," TWELVE "," THIRTEEN "," FOURTEEN "," FIFTEEN "," SIXTEEN"," SEVENTEEN"," EIGHTEEN "," NINETEEN "})&" THOUSAND "," ")&IF((INT((RIGHT(O15,3))/100))>0,LOOKUP(INT((RIGHT(O15,3))/100),{0,1,2,3,4,5,6,7,8,9,10,11,12,13,14,15,16,17,18,19},{""," ONE "," TWO "," THREE "," FOUR "," FIVE "," SIX "," SEVEN "," EIGHT "," NINE "," TEN "," ELEVEN "," TWELVE "," THIRTEEN "," FOURTEEN "," FIFTEEN "," SIXTEEN"," SEVENTEEN"," EIGHTEEN "," NINETEEN "})&" HUNDRED "," ")&LOOKUP(IF(INT(RIGHT(O15,2))>19,INT(RIGHT(O15,2)/10),IF(INT(RIGHT(O15,2))>=10,INT(RIGHT(O15,2)),0)),{0,1,2,3,4,5,6,7,8,9,10,11,12,13,14,15,16,17,18,19},{""," TEN "," TWENTY "," THIRTY "," FOURTY "," FIFTY "," SIXTY "," SEVENTY "," EIGHTY "," NINETY "," TEN "," ELEVEN "," TWELVE "," THIRTEEN "," FOURTEEN "," FIFTEEN "," SIXTEEN"," SEVENTEEN"," EIGHTEEN "," NINETEEN "})&LOOKUP(IF(INT(RIGHT(O15,2))<10,INT(RIGHT(O15,1)),IF(INT(RIGHT(O15,2))<20,0,INT(RIGHT(O15,1)))),{0,1,2,3,4,5,6,7,8,9,10,11,12,13,14,15,16,17,18,19},{""," ONE "," TWO "," THREE "," FOUR "," FIVE "," SIX "," SEVEN "," EIGHT "," NINE "," TEN "," ELEVEN "," TWELVE "," THIRTEEN "," FOURTEEN "," FIFTEEN "," SIXTEEN"," SEVENTEEN"," EIGHTEEN "," NINETEEN "})&" Only)")) -> ( Rs. FIVE THOUSAND FIVE HUNDRED SEVENTEEN Only)
B18: Pay Due | E18: Pay Drawn | H18: Pay Difference | K18: To be Paid In GPF / GPF-2004 | M18: To be Paid Cash
B19: BASIC | C19: DA | D19: HRA | E19: BASIC | F19: DA | G19: HRA | H19: BASIC | I19: DA | J19: HRA
B20: =C15 -> 183900 | C20: =D15 -> 106662 | D20: 18390 | E20: =G15 -> 183900 | F20: =H15 -> 101145 | G20: 18390 | H20: =B20-E20 -> 0 | I20: =C20-F20 -> 5517 | J20: 0 | K20: =O15 -> 5517 | M20: =R15 -> 0
O21: SEAL AND SIGN OF DDO
B22: S.R. | I22: Date :
B23: For Copying And Necessary Action
A24: 1 | B24: Treasury Officer / Deputy treasury Officer
A25: 2 | B25: Related Employee Sh./Smt./Mis. | G25: =IF(AND(D3=""),"",CONCATENATE(J3,","," ",P3)) -> HEERA LAL JAT, Sr. Teacher
A26: 3 | B26: File Register
O27: SEAL AND SIGN OF DDO

Sheet Unlock
W1: =IF(ISNA(VLOOKUP($D$3,Master!A$8:N$127,4,FALSE)),"",VLOOKUP($D$3,Master!A$8:AH$127,4,FALSE)) -> 5 | X1: =IF(ISNA(VLOOKUP($D$3,Master!A$8:N$127,6,FALSE)),"",VLOOKUP($D$3,Master!A$8:AH$127,6,FALSE)) -> GPF-2004 | Y1: GPF-2004 | Z1: GPF | AA1: =IF(ISNA(VLOOKUP($D$3,Master!A$8:N$127,7,FALSE)),"",VLOOKUP($D$3,Master!A$8:AH$127,7,FALSE)) -> 0
A2: =IF(AND(Master!C3=""),"",CONCATENATE("Office Of ",Master!C3)) -> Office Of Mahatma Gandhi Government School (English Medium) BAR , Beawar | X2: =IF(ISNA(VLOOKUP($D$3,Master!A$8:N$127,8,FALSE)),"",VLOOKUP($D$3,Master!A$8:AH$127,8,FALSE)) -> 45839 | Y2: YES
C3: Sr. No. :- | D3: 3 | E3: Name of Employee :- | J3: =IF(ISNA(VLOOKUP($D$3,Master!A$8:N$127,2,FALSE)),"",VLOOKUP($D$3,Master!A$8:AH$127,2,FALSE)) -> SEEMA CHHABA | O3: POST:- | P3: =IF(ISNA(VLOOKUP($D$3,Master!A$8:N$127,3,FALSE)),"",VLOOKUP($D$3,Master!A$8:AH$127,3,FALSE)) -> LECTURER
G4: =Arrear!G4 -> DA (55% to 58%) Drawn Statement
A6: Serial No. | B6: Month & Year | C6: Pay Due | G6: Pay Drawn | K6: Pay Difference | O6: Deducation | R6: To be paid in Cash Col. 14 form 18 | S6: Treasury Bill@ Voucher No.& Date
C7: Basic | D7: Dearness Allowance | E7: H.R.A. | F7: Total Col. 3 to 5 | G7: Basic | H7: Dearness Allowance | I7: H.R.A. | J7: Total Col. 7 to 9 | K7: Basic Pay | L7: Dearness Allowance | M7: H.R.A. | N7: Total Col. 11 to 13 | O7: =IF(X1="GPF","GPF ","GPF-2004 ") -> GPF-2004 | P7: Income Tax / TDS | Q7: Total of Dedu ction
A8: 1 | B8: 2 | C8: 3 | D8: 4 | E8: 5 | F8: 6 | G8: 7 | H8: 8 | I8: 9 | J8: 10 | K8: 11 | L8: 12 | M8: 13 | N8: 14 | O8: 15 | P8: 17 | Q8: 18 | R8: 19 | S8: 20
A9: 1 | B9: =IF(AND($D$3=""),"",X9) -> 2025-07-01 | C9: =IF(ISNA(VLOOKUP(D3,Master!A$8:N$127,5,FALSE)),"",VLOOKUP($D$3,Master!A$8:AH$127,5,FALSE)) -> 46100 | D9: =IF(AND(C9=""),"",IF(AND($D$3=""),"",ROUND(C9*Master!C$5%,0))) -> 26738 | E9: =IF(AND(C9=""),"",IF(AND($D$3=""),"",ROUND(C9*Master!H$5%,0))) -> 4610 | F9: =IF(AND(C9=""),"",SUM(C9:E9)) -> 77448 | G9: =IF(ISNA(VLOOKUP($D$3,Master!A$8:N$127,5,FALSE)),"",VLOOKUP($D$3,Master!A$8:AH$127,5,FALSE)) -> 46100 | H9: =IF(AND(G9=""),"",IF(AND($D$3=""),"",ROUND(G9*Master!C$4%,0))) -> 25355 | I9: =IF(AND(G9=""),"",IF(AND($D$3=""),"",ROUND(G9*Master!H$4%,0))) -> 4610 | J9: =IF(AND(C9=""),"",SUM(G9:I9)) -> 76065 | K9: =IF(AND(C9=""),"",IF(AND(G9=""),"",C9-G9)) -> 0 | L9: 1383 | M9: 0 | N9: 1383 | O9: =IF(AND(C9=""),"",IF(OR(B9=$Y$9,B9=$Y$10,B9=$Y$11,B9=$Y$12),N9-P9,"0")) -> 1383 | P9: =IF(AND($D$3=""),"",IF(AND(N9=""),"",ROUND(N9*AA$1%,0))) -> 0 | Q9: =IF(AND($D$3=""),"",IF(AND(C9=""),"",IF(AND(O9=""),"",SUM(O9,P9)))) -> 1383 | R9: =IF(AND(N9=""),"",IF(AND(Q9=""),"",N9-Q9)) -> 0 | X9: =IF(ISNA(VLOOKUP($D$3,Master!A$8:N$127,8,FALSE)),"",VLOOKUP($D$3,Master!A$8:AH$127,8,FALSE)) -> 2025-07-01 | Y9: 2025-07-01
A10: 2 | B10: =IF(AND($D$3=""),"",IF(AND($W$1<2),"",X10)) -> 2025-08-01 | C10: =IF(AND($D$3=""),"",IF(AND($W$1<2),"",C9)) -> 46100 | D10: =IF(AND(C10=""),"",IF(AND($D$3=""),"",ROUND(C10*Master!C$5%,0))) -> 26738 | E10: =IF(AND(C10=""),"",IF(AND($D$3=""),"",ROUND(C10*Master!H$5%,0))) -> 4610 | F10: 77448 | G10: =IF(AND($D$3=""),"",IF(AND(W$1<2),"",G9)) -> 46100 | H10: =IF(AND(G10=""),"",IF(AND($D$3=""),"",ROUND(G10*Master!C$4%,0))) -> 25355 | I10: =IF(AND(G10=""),"",IF(AND($D$3=""),"",ROUND(G10*Master!H$4%,0))) -> 4610 | J10: 76065 | K10: 0 | L10: 1383 | M10: 0 | N10: 1383 | O10: =IF(AND(C10=""),"",IF(OR(B10=$Y$9,B10=$Y$10,B10=$Y$11,B10=$Y$12),N10-P10,"0")) -> 1383 | P10: 0 | Q10: =IF(AND($D$3=""),"",IF(AND(C10=""),"",IF(AND(O10=""),"",SUM(O10,P10)))) -> 1383 | R10: =IF(AND(N10=""),"",IF(AND(Q10=""),"",N10-Q10)) -> 0 | X10: =DATE(YEAR(X9),MONTH(X9)+1,DAY(X9)) -> 2025-08-01 | Y10: 2025-08-01
A11: 3 | B11: =IF(AND($D$3=""),"",IF(AND($W$1<3),"",X11)) -> 2025-09-01 | C11: =IF(AND($D$3=""),"",IF(AND(W$1<3),"",C10)) -> 46100 | D11: =IF(AND(C11=""),"",IF(AND($D$3=""),"",ROUND(C11*Master!C$5%,0))) -> 26738 | E11: =IF(AND(C11=""),"",IF(AND($D$3=""),"",ROUND(C11*Master!H$5%,0))) -> 4610 | F11: 77448 | G11: =IF(AND($D$3=""),"",IF(AND(W$1<3),"",G10)) -> 46100 | H11: =IF(AND(G11=""),"",IF(AND($D$3=""),"",ROUND(G11*Master!C$4%,0))) -> 25355 | I11: =IF(AND(G11=""),"",IF(AND($D$3=""),"",ROUND(G11*Master!H$4%,0))) -> 4610 | J11: 76065 | K11: 0 | L11: 1383 | M11: 0 | N11: 1383 | O11: 1383 | P11: 0 | Q11: 1383 | R11: 0 | X11: =DATE(YEAR(X10),MONTH(X10)+1,DAY(X10)) -> 2025-09-01 | Y11: 2025-09-01
A12: 4 | B12: =IF(AND($D$3=""),"",IF(AND($W$1<4),"",X12)) -> 2025-10-01 | C12: =IF(AND($D$3=""),"",IF(AND(W$1<4),"",C11)) -> 46100 | D12: =IF(AND(C12=""),"",IF(AND($D$3=""),"",ROUND(C12*Master!C$5%,0))) -> 26738 | E12: =IF(AND(C12=""),"",IF(AND($D$3=""),"",ROUND(C12*Master!H$5%,0))) -> 4610 | F12: 77448 | G12: =IF(AND($D$3=""),"",IF(AND(W$1<4),"",G11)) -> 46100 | H12: =IF(AND(G12=""),"",IF(AND($D$3=""),"",ROUND(G12*Master!C$4%,0))) -> 25355 | I12: =IF(AND(G12=""),"",IF(AND($D$3=""),"",ROUND(G12*Master!H$4%,0))) -> 4610 | J12: 76065 | K12: 0 | L12: 1383 | M12: 0 | N12: 1383 | O12: 0 | P12: 0 | Q12: 0 | R12: 1383 | X12: 2025-10-01
A13: 5 | B13: =IF(AND($D$3=""),"",IF(AND($W$1<5),"",X13)) -> 2025-11-01 | C13: =IF(AND($D$3=""),"",IF(AND(W$1<5),"",C12)) -> 46100 | D13: =IF(AND(C13=""),"",IF(AND($D$3=""),"",ROUND(C13*Master!C$5%,0))) -> 26738 | E13: =IF(AND(C13=""),"",IF(AND($D$3=""),"",ROUND(C13*Master!H$5%,0))) -> 4610 | F13: 77448 | G13: =IF(AND($D$3=""),"",IF(AND(W$1<5),"",G12)) -> 46100 | H13: =IF(AND(G13=""),"",IF(AND($D$3=""),"",ROUND(G13*Master!C$4%,0))) -> 25355 | I13: =IF(AND(G13=""),"",IF(AND($D$3=""),"",ROUND(G13*Master!H$4%,0))) -> 4610 | J13: 76065 | K13: 0 | L13: 1383 | M13: 0 | N13: 1383 | O13: 0 | P13: 0 | Q13: 0 | R13: 1383 | X13: 2025-11-01
A14: 6 | B14: =IF(AND($D$3=""),"",IF(AND($W$1<6),"",X14)) ->  | C14: =IF(AND($D$3=""),"",IF(AND(W$1<6),"",C13)) ->  | D14: =IF(AND(C14=""),"",IF(AND($D$3=""),"",ROUND(C14*Master!C$5%,0))) ->  | E14: =IF(AND(C14=""),"",IF(AND($D$3=""),"",ROUND(C14*Master!H$5%,0))) ->  | G14: =IF(AND($D$3=""),"",IF(AND(Arrear!W$1<6),"",G13)) ->  | H14: =IF(AND(G14=""),"",IF(AND($D$3=""),"",ROUND(G14*Master!C$4%,0))) ->  | I14: =IF(AND(G14=""),"",IF(AND($D$3=""),"",ROUND(G14*Master!H$4%,0))) ->  | X14: 2025-12-01
A15: TOTAL | C15: =IF(AND($D$3=""),"",SUM(C9:C14)) -> 230500 | D15: =IF(AND($D$3=""),"",SUM(D9:D14)) -> 133690 | E15: 23050 | F15: 387240 | G15: 230500 | H15: 126775 | I15: 23050 | J15: 380325 | K15: 0 | L15: 6915 | M15: 0 | N15: 6915 | O15: 4149 | P15: 0 | Q15: 4149 | R15: 2766 | X15: 2026-01-01
C16: =IF(X1="GPF","Amount in Words Deposite in GPF :-","Amount in Words Deposite in GPF-2004 :-") -> Amount in Words Deposite in GPF-2004 :-
B18: Pay Due | E18: Pay Drawn | H18: Pay Difference | K18: To be Paid In GPF / GPF-2004 | M18: To be Paid Cash
B19: BASIC | C19: DA | D19: HRA | E19: BASIC | F19: DA | G19: HRA | H19: BASIC | I19: DA | J19: HRA
B20: =C15 -> 230500 | C20: =D15 -> 133690 | D20: 23050 | E20: =G15 -> 230500 | F20: =H15 -> 126775 | G20: 23050 | H20: =B20-E20 -> 0 | I20: =C20-F20 -> 6915 | J20: 0 | K20: =O15 -> 4149 | M20: =R15 -> 2766
O21: SEAL AND SIGN OF DDO
B22: S.R. | I22: Date :
B23: For Copying And Necessary Action
A24: 1 | B24: Treasury Officer / Deputy treasury Officer
A25: 2 | B25: Related Employee Sh./Smt./Mis. | G25: =IF(AND(D3=""),"",CONCATENATE(J3,","," ",P3)) -> SEEMA CHHABA, LECTURER
A26: 3 | B26: File Register
O27: SEAL AND SIGN OF DDO

Sheet Surrender Arrear
A1: DA (58%) Drawn Statement | W1: =IF(ISNA(VLOOKUP($D$3,Master!A$8:N$127,4,FALSE)),"",VLOOKUP($D$3,Master!A$8:AH$127,4,FALSE)) -> 3 | X1: =IF(ISNA(VLOOKUP($D$3,Master!A$8:N$127,6,FALSE)),"",VLOOKUP($D$3,Master!A$8:AH$127,6,FALSE)) -> GPF | Y1: GPF-2004 | Z1: GPF | AA1: =IF(ISNA(VLOOKUP($D$3,Master!A$8:N$127,7,FALSE)),"",VLOOKUP($D$3,Master!A$8:AH$127,7,FALSE)) -> 0
A2: =IF(AND(Master!C3=""),"",CONCATENATE("Office Of ",Master!C3)) -> Office Of Mahatma Gandhi Government School (English Medium) BAR , Beawar | X2: =IF(ISNA(VLOOKUP($D$3,Master!A$8:N$127,8,FALSE)),"",VLOOKUP($D$3,Master!A$8:AH$127,8,FALSE)) -> 45839 | Y2: YES
C3: Sr. No. :- | D3: 5 | E3: Name of Employee :- | J3: =IF(ISNA(VLOOKUP($D$3,Master!A$8:N$127,2,FALSE)),"",VLOOKUP($D$3,Master!A$8:AH$127,2,FALSE)) -> HEERA LAL JAT | O3: POST:- | P3: =IF(ISNA(VLOOKUP($D$3,Master!A$8:N$127,3,FALSE)),"",VLOOKUP($D$3,Master!A$8:AH$127,3,FALSE)) -> Sr. Teacher
A5: Sr.No. | B5: Month & Year | C5: Pay Due | G5: Pay Drawn | K5: Pay Difference | O5: Deducation | R5: To be paid in Cash Col. 14 form 18 | S5: Treasury Bill@ Voucher No.& Date
C6: Basic | D6: Dearness Allowance | E6: H.R.A. | F6: Total Col. 3 to 5 | G6: Basic | H6: Dearness Allowance | I6: H.R.A. | J6: Total Col. 7 to 9 | K6: Basic Pay | L6: Dearness Allowance | M6: H.R.A. | N6: Total Col. 11 to 13 | O6: =IF(X1="GPF","GPF ","GPF-2004 ") -> GPF | P6: Income Tax / TDS | Q6: Total of Dedu ction
A7: 1 | B7: 2 | C7: 3 | D7: 4 | E7: 5 | F7: 6 | G7: 7 | H7: 8 | I7: 9 | J7: 10 | K7: 11 | L7: 12 | M7: 13 | N7: 14 | O7: 15 | P7: 17 | Q7: 18 | R7: 19 | S7: 20
A8: 1 | B8: Surrender Arrear | C8: =IF(ISNA(VLOOKUP(D3,Master!A$8:N$127,5,FALSE)),"",VLOOKUP($D$3,Master!A$8:AH$127,5,FALSE))/2 -> 30650 | D8: =IF(AND(C8=""),"",IF(AND($D$3=""),"",ROUND(C8*Master!C$5%,0))) -> 17777 | F8: =IF(AND(C8=""),"",SUM(C8:E8)) -> 48427 | G8: =IF(ISNA(VLOOKUP($D$3,Master!A$8:N$127,5,FALSE)),"",VLOOKUP($D$3,Master!A$8:AH$127,5,FALSE))/2 -> 30650 | H8: =IF(AND(G8=""),"",IF(AND($D$3=""),"",ROUND(G8*Master!C$4%,0))) -> 16858 | J8: =IF(AND(C8=""),"",SUM(G8:I8)) -> 47508 | K8: =IF(AND(C8=""),"",IF(AND(G8=""),"",C8-G8)) -> 0 | L8: 919 | N8: 919 | O8: =IF(AND(C8=""),"",IF(AND(C8="",D8=""),"0",N8-P8)) -> 919 | P8: =IF(AND($D$3=""),"",IF(AND(N8=""),"",ROUND(N8*AA$1%,0))) -> 0 | Q8: =IF(AND($D$3=""),"",IF(AND(C8=""),"",IF(AND(O8=""),"",SUM(O8,P8)))) -> 919 | R8: =IF(AND(N8=""),"",IF(AND(Q8=""),"",N8-Q8)) -> 0 | X8: 2025-07-01
A9: TOTAL | C9: =IF(AND($D$3=""),"",SUM(C8:C8)) -> 30650 | D9: 17777 | E9: 0 | F9: 48427 | G9: 30650 | H9: 16858 | I9: 0 | J9: 47508 | K9: 0 | L9: 919 | M9: 0 | N9: 919 | O9: 919 | P9: 0 | Q9: 919 | R9: 0 | X9: 2025-08-01
C10: =IF(X1="GPF","Amount in Words Deposite in GPF :-","Amount in Words Deposite in GPF-2004 :-") -> Amount in Words Deposite in GPF :-
C11: Amount in Words , To be Paid In Cash :-
B13: S.R. | I13: Date : | O13: SEAL AND SIGN OF DDO
B14: For Copying And Necessary Action
A15: 1 | B15: Treasury Officer / Deputy treasury Officer
A16: 2 | B16: Related Employee Sh./Smt./Mis. | G16: =IF(AND(D3=""),"",CONCATENATE(J3,","," ",P3)) -> HEERA LAL JAT, Sr. Teacher
A17: 3 | B17: File Register
O18: SEAL AND SIGN OF DDO

Sheet All Employees Report
A1: =Arrear!G4 -> DA (55% to 58%) Drawn Statement | W1: =IF(ISNA(VLOOKUP($Y$3,Master!A$8:N$127,4,FALSE)),"",VLOOKUP($Y$3,Master!A$8:AH$127,4,FALSE)) -> 3 | X1: =IF(ISNA(VLOOKUP($Y$3,Master!A$8:N$127,6,FALSE)),"",VLOOKUP($Y$3,Master!A$8:AH$127,6,FALSE)) -> GPF-2004 | Y1: GPF-2004 | Z1: GPF | AA1: =IF(ISNA(VLOOKUP($Y$3,Master!A$8:N$127,7,FALSE)),"",VLOOKUP($Y$3,Master!A$8:AH$127,7,FALSE)) -> 0
A2: =IF(AND(Master!C3=""),"",CONCATENATE("Office Of ",Master!C3)) -> Office Of Mahatma Gandhi Government School (English Medium) BAR , Beawar | X2: =IF(ISNA(VLOOKUP($Y$3,Master!A$8:N$127,8,FALSE)),"",VLOOKUP($Y$3,Master!A$8:AH$127,8,FALSE)) -> 45839 | Y2: YES
E3: Name of Employee :- | J3: =IF(ISNA(VLOOKUP($Y$3,Master!A$8:N$127,2,FALSE)),"",VLOOKUP($Y$3,Master!A$8:AH$127,2,FALSE)) -> USHA PALIYA | O3: POST:- | P3: =IF(ISNA(VLOOKUP($Y$3,Master!A$8:N$127,3,FALSE)),"",VLOOKUP($Y$3,Master!A$8:AH$127,3,FALSE)) -> PRINCIPAL | X3: Sr. No. :- | Y3: =IF(AND(Master!B8="",Master!E8=""),"",1) -> 1
A5: Serial No. | B5: Month & Year | C5: Pay Due | G5: Pay Drawn | K5: Pay Difference | O5: Deducation | R5: To be paid in Cash Col. 14 form 18 | S5: Treasury Bill@ Voucher No.& Date | U5: Sheet Password
C6: Basic | D6: Dearness Allowance | E6: H.R.A. | F6: Total Col. 3 to 5 | G6: Basic | H6: Dearness Allowance | I6: H.R.A. | J6: Total Col. 7 to 9 | K6: Basic Pay | L6: Dearness Allowance | M6: H.R.A. | N6: Total Col. 11 to 13 | O6: GPF / GPF-2004 | P6: Income Tax / TDS | Q6: Total of Dedu ction | U6: DA#2025
A7: 1 | B7: 2 | C7: 3 | D7: 4 | E7: 5 | F7: 6 | G7: 7 | H7: 8 | I7: 9 | J7: 10 | K7: 11 | L7: 12 | M7: 13 | N7: 14 | O7: 15 | P7: 17 | Q7: 18 | R7: 19 | S7: 20
A8: 1 | B8: =IFERROR(IF(ISNA(VLOOKUP(Y3,Master!A$8:N$127,8,FALSE)),"",VLOOKUP($Y$3,Master!A$8:AH$127,8,FALSE)),"") -> 2025-07-01 | C8: =IFERROR(IF(ISNA(VLOOKUP(Y3,Master!A$8:N$127,5,FALSE)),"",VLOOKUP($Y$3,Master!A$8:AH$127,5,FALSE)),"") -> 71400 | D8: =IF(AND(C8=""),"",IF(AND($Y$3=""),"",ROUND(C8*Master!C$5%,0))) -> 41412 | E8: =IF(AND(C8=""),"",IF(AND($Y$3=""),"",ROUND(C8*Master!H$5%,0))) -> 7140 | F8: =IF(AND(C8=""),"",SUM(C8:E8)) -> 119952 | G8: =IFERROR(IF(ISNA(VLOOKUP($Y$3,Master!A$8:N$127,5,FALSE)),"",VLOOKUP($Y$3,Master!A$8:AH$127,5,FALSE)),"") -> 71400 | H8: =IF(AND(G8=""),"",IF(AND($Y$3=""),"",ROUND(G8*Master!C$4%,0))) -> 39270 | I8: =IF(AND(G8=""),"",IF(AND($Y$3=""),"",ROUND(G8*Master!H$4%,0))) -> 7140 | J8: =IF(AND(C8=""),"",SUM(G8:I8)) -> 117810 | K8: =IF(AND(C8=""),"",IF(AND(G8=""),"",C8-G8)) -> 0 | L8: 2142 | M8: 0 | N8: 2142 | O8: =IF(AND(C8=""),"",N8-P8) -> 2142 | P8: =IF(AND($Y$3=""),"",IF(AND(N8=""),"",ROUND(N8*AA$1%,0))) -> 0 | Q8: =IF(AND($Y$3=""),"",IF(AND(C8=""),"",IF(AND(O8=""),"",SUM(O8,P8)))) -> 2142 | R8: =IF(AND(N8=""),"",IF(AND(Q8=""),"",N8-Q8)) -> 0
A9: 2 | B9: =IFERROR(DATE(YEAR(B8),MONTH(B8)+1,DAY(B8)),"") -> 2025-08-01 | C9: =IF(AND($Y$3=""),"",C8) -> 71400 | D9: =IF(AND(C9=""),"",IF(AND($Y$3=""),"",ROUND(C9*Master!C$5%,0))) -> 41412 | E9: =IF(AND(C9=""),"",IF(AND($Y$3=""),"",ROUND(C9*Master!H$5%,0))) -> 7140 | F9: =IF(AND(C9=""),"",SUM(C9:E9)) -> 119952 | G9: =IF(AND($Y$3=""),"",G8) -> 71400 | H9: =IF(AND(G9=""),"",IF(AND($Y$3=""),"",ROUND(G9*Master!C$4%,0))) -> 39270 | I9: =IF(AND(G9=""),"",IF(AND($Y$3=""),"",ROUND(G9*Master!H$4%,0))) -> 7140 | J9: 117810 | K9: 0 | L9: 2142 | M9: 0 | N9: 2142 | O9: =IF(AND(C9=""),"",N9-P9) -> 2142 | P9: =IF(AND($Y$3=""),"",IF(AND(N9=""),"",ROUND(N9*AA$1%,0))) -> 0 | Q9: =IF(AND($Y$3=""),"",IF(AND(C9=""),"",IF(AND(O9=""),"",SUM(O9,P9)))) -> 2142 | R9: =IF(AND(N9=""),"",IF(AND(Q9=""),"",N9-Q9)) -> 0
A10: 3 | B10: =IFERROR(DATE(YEAR(B9),MONTH(B9)+1,DAY(B9)),"") -> 2025-09-01 | C10: =IF(AND($Y$3=""),"",C9) -> 71400 | D10: =IF(AND(C10=""),"",IF(AND($Y$3=""),"",ROUND(C10*Master!C$5%,0))) -> 41412 | E10: =IF(AND(C10=""),"",IF(AND($Y$3=""),"",ROUND(C10*Master!H$5%,0))) -> 7140 | F10: 119952 | G10: =IF(AND($Y$3=""),"",G9) -> 71400 | H10: =IF(AND(G10=""),"",IF(AND($Y$3=""),"",ROUND(G10*Master!C$4%,0))) -> 39270 | I10: =IF(AND(G10=""),"",IF(AND($Y$3=""),"",ROUND(G10*Master!H$4%,0))) -> 7140 | J10: =IF(AND(C10=""),"",SUM(G10:I10)) -> 117810 | K10: 0 | L10: 2142 | M10: =IF(AND(E10=""),"",IF(AND(I10=""),"",E10-I10)) -> 0 | N10: =IF(AND(F10=""),"",IF(AND(J10=""),"",F10-J10)) -> 2142 | O10: 2142 | P10: =IF(AND($Y$3=""),"",IF(AND(N10=""),"",ROUND(N10*AA$1%,0))) -> 0 | Q10: =IF(AND($Y$3=""),"",IF(AND(C10=""),"",IF(AND(O10=""),"",SUM(O10,P10)))) -> 2142 | R10: 0
A12: TOTAL | C12: =IF(AND($Y$3=""),"",SUM(C8:C11)) -> 214200 | D12: =IF(AND($Y$3=""),"",SUM(D8:D11)) -> 124236 | E12: 21420 | F12: 359856 | G12: 214200 | H12: 117810 | I12: 21420 | J12: 353430 | K12: 0 | L12: 6426 | M12: 0 | N12: 6426 | O12: 6426 | P12: 0 | Q12: 6426 | R12: 0
E14: Name of Employee :- | J14: =IF(ISNA(VLOOKUP($Y$16,Master!A$8:N$127,2,FALSE)),"",VLOOKUP($Y$16,Master!A$8:AH$127,2,FALSE)) -> DEVANAND | O14: POST:- | P14: =IF(ISNA(VLOOKUP($Y$16,Master!A$8:N$127,3,FALSE)),"",VLOOKUP($Y$16,Master!A$8:AH$127,3,FALSE)) -> LECTURER
A16: 1 | B16: =IFERROR(IF(ISNA(VLOOKUP(Y16,Master!A$8:N$127,8,FALSE)),"",VLOOKUP($Y16,Master!A$8:AH$127,8,FALSE)),"") -> 2025-07-01 | C16: =IFERROR(IF(ISNA(VLOOKUP($Y$16,Master!A$8:N$127,5,FALSE)),"",VLOOKUP($Y$16,Master!A$8:AH$127,5,FALSE)),"") -> 71300 | D16: =IF(AND(C16=""),"",IF(AND($Y$16=""),"",ROUND(C16*Master!C$5%,0))) -> 41354 | E16: =IF(AND(C16=""),"",IF(AND($Y$16=""),"",ROUND(C16*Master!H$5%,0))) -> 7130 | F16: =IF(AND(C16=""),"",SUM(C16:E16)) -> 119784 | G16: =IFERROR(IF(ISNA(VLOOKUP($Y$16,Master!A$8:N$127,5,FALSE)),"",VLOOKUP($Y$16,Master!A$8:AH$127,5,FALSE)),"") -> 71300 | H16: =IF(AND(G16=""),"",IF(AND($Y$16=""),"",ROUND(G16*Master!C$4%,0))) -> 39215 | I16: =IF(AND(G16=""),"",IF(AND($Y$16=""),"",ROUND(G16*Master!H$4%,0))) -> 7130 | J16: =IF(AND(C16=""),"",SUM(G16:I16)) -> 117645 | K16: =IF(AND(C16=""),"",IF(AND(G16=""),"",C16-G16)) -> 0 | L16: =IF(AND(D16=""),"",IF(AND(H16=""),"",D16-H16)) -> 2139 | M16: =IF(AND(E16=""),"",IF(AND(I16=""),"",E16-I16)) -> 0 | N16: =IF(AND(F16=""),"",IF(AND(J16=""),"",F16-J16)) -> 2139 | O16: =IF(AND(C16=""),"",N16-P16) -> 2139 | P16: =IF(AND($Y$16=""),"",IF(AND(N16=""),"",ROUND(N16*X$17%,0))) -> 0 | Q16: =IF(AND($Y$16=""),"",IF(AND(C16=""),"",IF(AND(O16=""),"",SUM(O16,P16)))) -> 2139 | R16: =IF(AND(N16=""),"",IF(AND(Q16=""),"",N16-Q16)) -> 0 | X16: Sr. No. :- | Y16: =IF(AND(Master!B9="",Master!E9=""),"",2) -> 2
A17: 2 | B17: =IFERROR(DATE(YEAR(B16),MONTH(B16)+1,DAY(B16)),"") -> 2025-08-01 | C17: =IF(AND($Y$16=""),"",C16) -> 71300 | D17: =IF(AND(C17=""),"",IF(AND($Y$16=""),"",ROUND(C17*Master!C$5%,0))) -> 41354 | E17: =IF(AND(C17=""),"",IF(AND($Y$16=""),"",ROUND(C17*Master!H$5%,0))) -> 7130 | F17: 119784 | G17: =IF(AND($Y$16=""),"",G16) -> 71300 | H17: =IF(AND(G17=""),"",IF(AND($Y$16=""),"",ROUND(G17*Master!C$4%,0))) -> 39215 | I17: =IF(AND(G17=""),"",IF(AND($Y$16=""),"",ROUND(G17*Master!H$4%,0))) -> 7130 | J17: 117645 | K17: =IF(AND(C17=""),"",IF(AND(G17=""),"",C17-G17)) -> 0 | L17: =IF(AND(D17=""),"",IF(AND(H17=""),"",D17-H17)) -> 2139 | M17: 0 | N17: 2139 | O17: =IF(AND(C17=""),"",N17-P17) -> 2139 | P17: =IF(AND($Y$16=""),"",IF(AND(N17=""),"",ROUND(N17*X$17%,0))) -> 0 | Q17: =IF(AND($Y$16=""),"",IF(AND(C17=""),"",IF(AND(O17=""),"",SUM(O17,P17)))) -> 2139 | R17: =IF(AND(N17=""),"",IF(AND(Q17=""),"",N17-Q17)) -> 0 | X17: =IF(ISNA(VLOOKUP($Y$16,Master!A$8:N$127,7,FALSE)),"",VLOOKUP($Y$16,Master!A$8:AH$127,7,FALSE)) -> 0
A18: 3 | B18: =IFERROR(DATE(YEAR(B17),MONTH(B17)+1,DAY(B17)),"") -> 2025-09-01 | C18: =IF(AND($Y$16=""),"",C17) -> 71300 | D18: =IF(AND(C18=""),"",IF(AND($Y$16=""),"",ROUND(C18*Master!C$5%,0))) -> 41354 | E18: =IF(AND(C18=""),"",IF(AND($Y$16=""),"",ROUND(C18*Master!H$5%,0))) -> 7130 | F18: 119784 | G18: =IF(AND($Y$16=""),"",G17) -> 71300 | H18: =IF(AND(G18=""),"",IF(AND($Y$16=""),"",ROUND(G18*Master!C$4%,0))) -> 39215 | I18: =IF(AND(G18=""),"",IF(AND($Y$16=""),"",ROUND(G18*Master!H$4%,0))) -> 7130 | J18: 117645 | K18: 0 | L18: 2139 | M18: 0 | N18: 2139 | O18: 2139 | P18: 0 | Q18: =IF(AND($Y$16=""),"",IF(AND(C18=""),"",IF(AND(O18=""),"",SUM(O18,P18)))) -> 2139 | R18: 0
A20: TOTAL | C20: =IF(AND($Y$16=""),"",SUM(C16:C19)) -> 213900 | D20: =IF(AND($Y$16=""),"",SUM(D16:D19)) -> 124062 | E20: 21390 | F20: 359352 | G20: 213900 | H20: 117645 | I20: 21390 | J20: 352935 | K20: 0 | L20: 6417 | M20: 0 | N20: 6417 | O20: 6417 | P20: 0 | Q20: 6417 | R20: 0
E22: Name of Employee :- | J22: =IF(ISNA(VLOOKUP($Y$24,Master!A$8:N$127,2,FALSE)),"",VLOOKUP($Y$24,Master!A$8:AH$127,2,FALSE)) -> SEEMA CHHABA | O22: POST:- | P22: =IF(ISNA(VLOOKUP($Y$24,Master!A$8:N$127,3,FALSE)),"",VLOOKUP($Y$24,Master!A$8:AH$127,3,FALSE)) -> LECTURER
A24: 1 | B24: =IFERROR(IF(ISNA(VLOOKUP(Y24,Master!A$8:N$127,8,FALSE)),"",VLOOKUP($Y24,Master!A$8:AH$127,8,FALSE)),"") -> 2025-07-01 | C24: =IFERROR(IF(ISNA(VLOOKUP($Y$24,Master!A$8:N$127,5,FALSE)),"",VLOOKUP($Y$24,Master!A$8:AH$127,5,FALSE)),"") -> 46100 | D24: =IF(AND(C24=""),"",IF(AND($Y$24=""),"",ROUND(C24*Master!C$5%,0))) -> 26738 | E24: =IF(AND(C24=""),"",IF(AND($Y$24=""),"",ROUND(C24*Master!H$5%,0))) -> 4610 | F24: =IF(AND(C24=""),"",SUM(C24:E24)) -> 77448 | G24: =IFERROR(IF(ISNA(VLOOKUP($Y$24,Master!A$8:N$127,5,FALSE)),"",VLOOKUP($Y$24,Master!A$8:AH$127,5,FALSE)),"") -> 46100 | H24: =IF(AND(G24=""),"",IF(AND($Y$24=""),"",ROUND(G24*Master!C$4%,0))) -> 25355 | I24: =IF(AND(G24=""),"",IF(AND($Y$24=""),"",ROUND(G24*Master!H$4%,0))) -> 4610 | J24: =IF(AND(C24=""),"",SUM(G24:I24)) -> 76065 | K24: =IF(AND(C24=""),"",IF(AND(G24=""),"",C24-G24)) -> 0 | L24: =IF(AND(D24=""),"",IF(AND(H24=""),"",D24-H24)) -> 1383 | M24: =IF(AND(E24=""),"",IF(AND(I24=""),"",E24-I24)) -> 0 | N24: =IF(AND(F24=""),"",IF(AND(J24=""),"",F24-J24)) -> 1383 | O24: =IF(AND(C24=""),"",N24-P24) -> 1383 | P24: =IF(AND($Y$24=""),"",IF(AND(N24=""),"",ROUND(N24*$X$25%,0))) -> 0 | Q24: =IF(AND($Y$24=""),"",IF(AND(C24=""),"",IF(AND(O24=""),"",SUM(O24,P24)))) -> 1383 | R24: =IF(AND(N24=""),"",IF(AND(Q24=""),"",N24-Q24)) -> 0 | X24: Sr. No. :- | Y24: =IF(AND(Master!B10="",Master!E10=""),"",3) -> 3
A25: 2 | B25: =IFERROR(DATE(YEAR(B24),MONTH(B24)+1,DAY(B24)),"") -> 2025-08-01 | C25: =IF(AND($Y$24=""),"",C24) -> 46100 | D25: =IF(AND(C25=""),"",IF(AND($Y$24=""),"",ROUND(C25*Master!C$5%,0))) -> 26738 | E25: =IF(AND(C25=""),"",IF(AND($Y$24=""),"",ROUND(C25*Master!H$5%,0))) -> 4610 | F25: 77448 | G25: =IF(AND($Y$24=""),"",G24) -> 46100 | H25: =IF(AND(G25=""),"",IF(AND($Y$24=""),"",ROUND(G25*Master!C$4%,0))) -> 25355 | I25: =IF(AND(G25=""),"",IF(AND($Y$24=""),"",ROUND(G25*Master!H$4%,0))) -> 4610 | J25: 76065 | K25: 0 | L25: 1383 | M25: 0 | N25: 1383 | O25: =IF(AND(C25=""),"",N25-P25) -> 1383 | P25: =IF(AND($Y$24=""),"",IF(AND(N25=""),"",ROUND(N25*$X$25%,0))) -> 0 | Q25: =IF(AND($Y$24=""),"",IF(AND(C25=""),"",IF(AND(O25=""),"",SUM(O25,P25)))) -> 1383 | R25: =IF(AND(N25=""),"",IF(AND(Q25=""),"",N25-Q25)) -> 0 | X25: =IF(ISNA(VLOOKUP($Y$24,Master!A$8:N$127,7,FALSE)),"",VLOOKUP($Y$24,Master!A$8:AH$127,7,FALSE)) -> 0
A26: 3 | B26: =IFERROR(DATE(YEAR(B25),MONTH(B25)+1,DAY(B25)),"") -> 2025-09-01 | C26: =IF(AND($Y$24=""),"",C25) -> 46100 | D26: =IF(AND(C26=""),"",IF(AND($Y$24=""),"",ROUND(C26*Master!C$5%,0))) -> 26738 | E26: =IF(AND(C26=""),"",IF(AND($Y$24=""),"",ROUND(C26*Master!H$5%,0))) -> 4610 | F26: 77448 | G26: =IF(AND($Y$24=""),"",G25) -> 46100 | H26: =IF(AND(G26=""),"",IF(AND($Y$24=""),"",ROUND(G26*Master!C$4%,0))) -> 25355 | I26: =IF(AND(G26=""),"",IF(AND($Y$24=""),"",ROUND(G26*Master!H$4%,0))) -> 4610 | J26: 76065 | K26: 0 | L26: 1383 | M26: 0 | N26: 1383 | O26: 1383 | P26: 0 | Q26: =IF(AND($Y$24=""),"",IF(AND(C26=""),"",IF(AND(O26=""),"",SUM(O26,P26)))) -> 1383 | R26: 0
A28: TOTAL | C28: =IF(AND($Y$24=""),"",SUM(C24:C27)) -> 138300 | D28: =IF(AND($Y$24=""),"",SUM(D24:D27)) -> 80214 | E28: 13830 | F28: 232344 | G28: 138300 | H28: 76065 | I28: 13830 | J28: 228195 | K28: 0 | L28: 4149 | M28: 0 | N28: 4149 | O28: 4149 | P28: 0 | Q28: 4149 | R28: 0
O30: SEAL AND SIGN OF DDO
B31: S.R. | I31: Date :
B32: For Copying And Necessary Action
A33: 1 | B33: Treasury Officer / Deputy treasury Officer
A34: 2 | B34: Related Employee Sh./Smt./Mis.
A35: 3 | B35: File Register
O36: SEAL AND SIGN OF DDO
A38: =A1 -> DA (55% to 58%) Drawn Statement | W38: =IF(ISNA(VLOOKUP($Y$3,Master!A$8:N$127,4,FALSE)),"",VLOOKUP($Y$3,Master!A$8:AH$127,4,FALSE)) -> 3 | X38: =IF(ISNA(VLOOKUP($Y$3,Master!A$8:N$127,6,FALSE)),"",VLOOKUP($Y$3,Master!A$8:AH$127,6,FALSE)) -> GPF-2004 | Y38: GPF-2004 | Z38: GPF | AA38: =IF(ISNA(VLOOKUP($Y$40,Master!A$8:N$127,7,FALSE)),"",VLOOKUP($Y$40,Master!A$8:AH$127,7,FALSE)) -> 0
A39: =IF(AND(Master!C37=""),"",CONCATENATE("Office Of ",Master!C37)) ->  | X39: =IF(ISNA(VLOOKUP($Y$3,Master!A$8:N$127,8,FALSE)),"",VLOOKUP($Y$3,Master!A$8:AH$127,8,FALSE)) -> 45839 | Y39: YES
E40: Name of Employee :- | J40: =IF(ISNA(VLOOKUP($Y$40,Master!A$8:N$127,2,FALSE)),"",VLOOKUP($Y$40,Master!A$8:AH$127,2,FALSE)) -> SURESH CHAND SINGARIYA | O40: POST:- | P40: =IF(ISNA(VLOOKUP($Y$40,Master!A$8:N$127,3,FALSE)),"",VLOOKUP($Y$40,Master!A$8:AH$127,3,FALSE)) -> Sr. Teacher | X40: Sr. No. :- | Y40: =IF(AND(Master!B11="",Master!E11=""),"",4) -> 4
A42: Serial No. | B42: Month & Year | C42: Pay Due | G42: Pay Drawn | K42: Pay Difference | O42: Deducation | R42: To be paid in Cash Col. 14 form 18 | S42: Treasury Bill@ Voucher No.& Date
C43: Basic | D43: Dearness Allowance | E43: H.R.A. | F43: Total Col. 3 to 5 | G43: Basic | H43: Dearness Allowance | I43: H.R.A. | J43: Total Col. 7 to 9 | K43: Basic Pay | L43: Dearness Allowance | M43: H.R.A. | N43: Total Col. 11 to 13 | O43: GPF / GPF-2004 | P43: Income Tax / TDS | Q43: Total of Dedu ction
A44: 1 | B44: 2 | C44: 3 | D44: 4 | E44: 5 | F44: 6 | G44: 7 | H44: 8 | I44: 9 | J44: 10 | K44: 11 | L44: 12 | M44: 13 | N44: 14 | O44: 15 | P44: 17 | Q44: 18 | R44: 19 | S44: 20
A45: 1 | B45: =IFERROR(IF(ISNA(VLOOKUP(Y40,Master!A$8:N$127,8,FALSE)),"",VLOOKUP($Y40,Master!A$8:AH$127,8,FALSE)),"") -> 2025-07-01 | C45: =IFERROR(IF(ISNA(VLOOKUP(Y40,Master!A$8:N$127,5,FALSE)),"",VLOOKUP($Y$40,Master!A$8:AH$127,5,FALSE)),"") -> 63100 | D45: =IF(AND(C45=""),"",IF(AND($Y$40=""),"",ROUND(C45*Master!C$5%,0))) -> 36598 | E45: =IF(AND(C45=""),"",IF(AND($Y$40=""),"",ROUND(C45*Master!H$5%,0))) -> 6310 | F45: =IF(AND(C45=""),"",SUM(C45:E45)) -> 106008 | G45: =IFERROR(IF(ISNA(VLOOKUP($Y$40,Master!A$8:N$127,5,FALSE)),"",VLOOKUP($Y$40,Master!A$8:AH$127,5,FALSE)),"") -> 63100 | H45: =IF(AND(G45=""),"",IF(AND($Y$40=""),"",ROUND(G45*Master!C$4%,0))) -> 34705 | I45: =IF(AND(G45=""),"",IF(AND($Y$40=""),"",ROUND(G45*Master!H$4%,0))) -> 6310 | J45: =IF(AND(C45=""),"",SUM(G45:I45)) -> 104115 | K45: =IF(AND(C45=""),"",IF(AND(G45=""),"",C45-G45)) -> 0 | L45: =IF(AND(D45=""),"",IF(AND(H45=""),"",D45-H45)) -> 1893 | M45: =IF(AND(E45=""),"",IF(AND(I45=""),"",E45-I45)) -> 0 | N45: =IF(AND(F45=""),"",IF(AND(J45=""),"",F45-J45)) -> 1893 | O45: =IF(AND(C45=""),"",N45-P45) -> 1893 | P45: =IF(AND($Y$40=""),"",IF(AND(N45=""),"",ROUND(N45*AA$38%,0))) -> 0 | Q45: =IF(AND($Y$40=""),"",IF(AND(C45=""),"",IF(AND(O45=""),"",SUM(O45,P45)))) -> 1893 | R45: =IF(AND(N45=""),"",IF(AND(Q45=""),"",N45-Q45)) -> 0
A46: 2 | B46: =IFERROR(DATE(YEAR(B45),MONTH(B45)+1,DAY(B45)),"") -> 2025-08-01 | C46: =IF(AND($Y$40=""),"",C45) -> 63100 | D46: =IF(AND(C46=""),"",IF(AND($Y$40=""),"",ROUND(C46*Master!C$5%,0))) -> 36598 | E46: =IF(AND(C46=""),"",IF(AND($Y$40=""),"",ROUND(C46*Master!H$5%,0))) -> 6310 | F46: =IF(AND(C46=""),"",SUM(C46:E46)) -> 106008 | G46: =IF(AND($Y$40=""),"",G45) -> 63100 | H46: =IF(AND(G46=""),"",IF(AND($Y$40=""),"",ROUND(G46*Master!C$4%,0))) -> 34705 | I46: =IF(AND(G46=""),"",IF(AND($Y$40=""),"",ROUND(G46*Master!H$4%,0))) -> 6310 | J46: 104115 | K46: 0 | L46: 1893 | M46: 0 | N46: 1893 | O46: =IF(AND(C46=""),"",N46-P46) -> 1893 | P46: =IF(AND($Y$40=""),"",IF(AND(N46=""),"",ROUND(N46*AA$38%,0))) -> 0 | Q46: =IF(AND($Y$40=""),"",IF(AND(C46=""),"",IF(AND(O46=""),"",SUM(O46,P46)))) -> 1893 | R46: =IF(AND(N46=""),"",IF(AND(Q46=""),"",N46-Q46)) -> 0
A47: 3 | B47: =IFERROR(DATE(YEAR(B46),MONTH(B46)+1,DAY(B46)),"") -> 2025-09-01 | C47: =IF(AND($Y$40=""),"",C46) -> 63100 | D47: =IF(AND(C47=""),"",IF(AND($Y$40=""),"",ROUND(C47*Master!C$5%,0))) -> 36598 | E47: =IF(AND(C47=""),"",IF(AND($Y$40=""),"",ROUND(C47*Master!H$5%,0))) -> 6310 | F47: =IF(AND(C47=""),"",SUM(C47:E47)) -> 106008 | G47: =IF(AND($Y$40=""),"",G46) -> 63100 | H47: =IF(AND(G47=""),"",IF(AND($Y$40=""),"",ROUND(G47*Master!C$4%,0))) -> 34705 | I47: =IF(AND(G47=""),"",IF(AND($Y$40=""),"",ROUND(G47*Master!H$4%,0))) -> 6310 | J47: =IF(AND(C47=""),"",SUM(G47:I47)) -> 104115 | K47: 0 | L47: 1893 | M47: =IF(AND(E47=""),"",IF(AND(I47=""),"",E47-I47)) -> 0 | N47: =IF(AND(F47=""),"",IF(AND(J47=""),"",F47-J47)) -> 1893 | O47: 1893 | P47: 0 | Q47: =IF(AND($Y$40=""),"",IF(AND(C47=""),"",IF(AND(O47=""),"",SUM(O47,P47)))) -> 1893 | R47: 0
A49: TOTAL | C49: =IF(AND($Y$40=""),"",SUM(C45:C48)) -> 189300 | D49: =IF(AND($Y$40=""),"",SUM(D45:D48)) -> 109794 | E49: 18930 | F49: 318024 | G49: 189300 | H49: 104115 | I49: 18930 | J49: 312345 | K49: 0 | L49: 5679 | M49: 0 | N49: =IF(AND($Y$40=""),"",SUM(N45:N48)) -> 5679 | O49: 5679 | P49: 0 | Q49: 5679 | R49: 0
E51: Name of Employee :- | J51: =IF(ISNA(VLOOKUP($Y$53,Master!A$8:N$127,2,FALSE)),"",VLOOKUP($Y$53,Master!A$8:AH$127,2,FALSE)) -> HEERA LAL JAT | O51: POST:- | P51: =IF(ISNA(VLOOKUP($Y$53,Master!A$8:N$127,3,FALSE)),"",VLOOKUP($Y$53,Master!A$8:AH$127,3,FALSE)) -> Sr. Teacher
A53: 1 | B53: =IFERROR(IF(ISNA(VLOOKUP(Y53,Master!A$8:N$127,8,FALSE)),"",VLOOKUP($Y53,Master!A$8:AH$127,8,FALSE)),"") -> 2025-07-01 | C53: =IFERROR(IF(ISNA(VLOOKUP($Y$53,Master!A$8:N$127,5,FALSE)),"",VLOOKUP($Y$53,Master!A$8:AH$127,5,FALSE)),"") -> 61300 | D53: =IF(AND(C53=""),"",IF(AND($Y$53=""),"",ROUND(C53*Master!C$5%,0))) -> 35554 | E53: =IF(AND(C53=""),"",IF(AND($Y$53=""),"",ROUND(C53*Master!H$5%,0))) -> 6130 | F53: =IF(AND(C53=""),"",SUM(C53:E53)) -> 102984 | G53: =IFERROR(IF(ISNA(VLOOKUP($Y$53,Master!A$8:N$127,5,FALSE)),"",VLOOKUP($Y$53,Master!A$8:AH$127,5,FALSE)),"") -> 61300 | H53: =IF(AND(G53=""),"",IF(AND($Y$53=""),"",ROUND(G53*Master!C$4%,0))) -> 33715 | I53: =IF(AND(G53=""),"",IF(AND($Y$53=""),"",ROUND(G53*Master!H$4%,0))) -> 6130 | J53: =IF(AND(C53=""),"",SUM(G53:I53)) -> 101145 | K53: =IF(AND(C53=""),"",IF(AND(G53=""),"",C53-G53)) -> 0 | L53: =IF(AND(D53=""),"",IF(AND(H53=""),"",D53-H53)) -> 1839 | M53: =IF(AND(E53=""),"",IF(AND(I53=""),"",E53-I53)) -> 0 | N53: =IF(AND(F53=""),"",IF(AND(J53=""),"",F53-J53)) -> 1839 | O53: =IF(AND(C53=""),"",N53-P53) -> 1839 | P53: =IF(AND($Y$53=""),"",IF(AND(N53=""),"",ROUND(N53*$X$54%,0))) -> 0 | Q53: =IF(AND($Y$53=""),"",IF(AND(C53=""),"",IF(AND(O53=""),"",SUM(O53,P53)))) -> 1839 | R53: =IF(AND(N53=""),"",IF(AND(Q53=""),"",N53-Q53)) -> 0 | X53: Sr. No. :- | Y53: =IF(AND(Master!B12="",Master!E12=""),"",5) -> 5
A54: 2 | B54: =IFERROR(DATE(YEAR(B53),MONTH(B53)+1,DAY(B53)),"") -> 2025-08-01 | C54: =IF(AND($Y$53=""),"",C53) -> 61300 | D54: =IF(AND(C54=""),"",IF(AND($Y$53=""),"",ROUND(C54*Master!C$5%,0))) -> 35554 | E54: =IF(AND(C54=""),"",IF(AND($Y$53=""),"",ROUND(C54*Master!H$5%,0))) -> 6130 | F54: 102984 | G54: =IF(AND($Y$53=""),"",G53) -> 61300 | H54: =IF(AND(G54=""),"",IF(AND($Y$53=""),"",ROUND(G54*Master!C$4%,0))) -> 33715 | I54: =IF(AND(G54=""),"",IF(AND($Y$53=""),"",ROUND(G54*Master!H$4%,0))) -> 6130 | J54: 101145 | K54: =IF(AND(C54=""),"",IF(AND(G54=""),"",C54-G54)) -> 0 | L54: =IF(AND(D54=""),"",IF(AND(H54=""),"",D54-H54)) -> 1839 | M54: 0 | N54: 1839 | O54: =IF(AND(C54=""),"",N54-P54) -> 1839 | P54: =IF(AND($Y$53=""),"",IF(AND(N54=""),"",ROUND(N54*$X$54%,0))) -> 0 | Q54: =IF(AND($Y$53=""),"",IF(AND(C54=""),"",IF(AND(O54=""),"",SUM(O54,P54)))) -> 1839 | R54: =IF(AND(N54=""),"",IF(AND(Q54=""),"",N54-Q54)) -> 0 | X54: =IF(ISNA(VLOOKUP($Y$53,Master!A$8:N$127,7,FALSE)),"",VLOOKUP($Y$53,Master!A$8:AH$127,7,FALSE)) -> 0
A55: 3 | B55: =IFERROR(DATE(YEAR(B54),MONTH(B54)+1,DAY(B54)),"") -> 2025-09-01 | C55: =IF(AND($Y$53=""),"",C54) -> 61300 | D55: =IF(AND(C55=""),"",IF(AND($Y$53=""),"",ROUND(C55*Master!C$5%,0))) -> 35554 | E55: =IF(AND(C55=""),"",IF(AND($Y$53=""),"",ROUND(C55*Master!H$5%,0))) -> 6130 | F55: 102984 | G55: =IF(AND($Y$53=""),"",G54) -> 61300 | H55: =IF(AND(G55=""),"",IF(AND($Y$53=""),"",ROUND(G55*Master!C$4%,0))) -> 33715 | I55: =IF(AND(G55=""),"",IF(AND($Y$53=""),"",ROUND(G55*Master!H$4%,0))) -> 6130 | J55: 101145 | K55: =IF(AND(C55=""),"",IF(AND(G55=""),"",C55-G55)) -> 0 | L55: 1839 | M55: 0 | N55: 1839 | O55: 1839 | P55: 0 | Q55: =IF(AND($Y$53=""),"",IF(AND(C55=""),"",IF(AND(O55=""),"",SUM(O55,P55)))) -> 1839 | R55: 0
A57: TOTAL | C57: =IF(AND($Y$53=""),"",SUM(C53:C56)) -> 183900 | D57: =IF(AND($Y$53=""),"",SUM(D53:D56)) -> 106662 | E57: 18390 | F57: 308952 | G57: 183900 | H57: 101145 | I57: 18390 | J57: 303435 | K57: 0 | L57: 5517 | M57: 0 | N57: 5517 | O57: 5517 | P57: 0 | Q57: 5517 | R57: 0
E59: Name of Employee :- | J59: =IF(ISNA(VLOOKUP($Y$61,Master!A$8:N$127,2,FALSE)),"",VLOOKUP($Y$61,Master!A$8:AH$127,2,FALSE)) -> RAKESH KUMAR | O59: POST:- | P59: =IF(ISNA(VLOOKUP($Y$61,Master!A$8:N$127,3,FALSE)),"",VLOOKUP($Y$61,Master!A$8:AH$127,3,FALSE)) -> Sr. Teacher
A61: 1 | B61: =IFERROR(IF(ISNA(VLOOKUP(Y61,Master!A$8:N$127,8,FALSE)),"",VLOOKUP($Y61,Master!A$8:AH$127,8,FALSE)),"") -> 2025-08-01 | C61: =IFERROR(IF(ISNA(VLOOKUP($Y$61,Master!A$8:N$127,5,FALSE)),"",VLOOKUP($Y$61,Master!A$8:AH$127,5,FALSE)),"") -> 41300 | D61: =IF(AND(C61=""),"",IF(AND($Y$61=""),"",ROUND(C61*Master!C$5%,0))) -> 23954 | E61: =IF(AND(C61=""),"",IF(AND($Y$61=""),"",ROUND(C61*Master!H$5%,0))) -> 4130 | F61: =IF(AND(C61=""),"",SUM(C61:E61)) -> 69384 | G61: =IFERROR(IF(ISNA(VLOOKUP($Y$61,Master!A$8:N$127,5,FALSE)),"",VLOOKUP($Y$61,Master!A$8:AH$127,5,FALSE)),"") -> 41300 | H61: =IF(AND(G61=""),"",IF(AND($Y$61=""),"",ROUND(G61*Master!C$4%,0))) -> 22715 | I61: =IF(AND(G61=""),"",IF(AND($Y$61=""),"",ROUND(G61*Master!H$4%,0))) -> 4130 | J61: =IF(AND(C61=""),"",SUM(G61:I61)) -> 68145 | K61: =IF(AND(C61=""),"",IF(AND(G61=""),"",C61-G61)) -> 0 | L61: =IF(AND(D61=""),"",IF(AND(H61=""),"",D61-H61)) -> 1239 | M61: =IF(AND(E61=""),"",IF(AND(I61=""),"",E61-I61)) -> 0 | N61: =IF(AND(F61=""),"",IF(AND(J61=""),"",F61-J61)) -> 1239 | O61: =IF(AND(C61=""),"",N61-P61) -> 1239 | P61: =IF(AND($Y$61=""),"",IF(AND(N61=""),"",ROUND(N61*$X$62%,0))) -> 0 | Q61: =IF(AND($Y$61=""),"",IF(AND(C61=""),"",IF(AND(O61=""),"",SUM(O61,P61)))) -> 1239 | R61: =IF(AND(N61=""),"",IF(AND(Q61=""),"",N61-Q61)) -> 0 | X61: Sr. No. :- | Y61: =IF(AND(Master!B13="",Master!E13=""),"",6) -> 6
A62: 2 | B62: =IFERROR(DATE(YEAR(B61),MONTH(B61)+1,DAY(B61)),"") -> 2025-09-01 | C62: =IF(AND($Y$61=""),"",C61) -> 41300 | D62: =IF(AND(C62=""),"",IF(AND($Y$61=""),"",ROUND(C62*Master!C$5%,0))) -> 23954 | E62: =IF(AND(C62=""),"",IF(AND($Y$61=""),"",ROUND(C62*Master!H$5%,0))) -> 4130 | F62: 69384 | G62: =IF(AND($Y$61=""),"",G61) -> 41300 | H62: =IF(AND(G62=""),"",IF(AND($Y$61=""),"",ROUND(G62*Master!C$4%,0))) -> 22715 | I62: =IF(AND(G62=""),"",IF(AND($Y$61=""),"",ROUND(G62*Master!H$4%,0))) -> 4130 | J62: 68145 | K62: 0 | L62: 1239 | M62: 0 | N62: 1239 | O62: =IF(AND(C62=""),"",N62-P62) -> 1239 | P62: =IF(AND($Y$61=""),"",IF(AND(N62=""),"",ROUND(N62*$X$62%,0))) -> 0 | Q62: =IF(AND($Y$61=""),"",IF(AND(C62=""),"",IF(AND(O62=""),"",SUM(O62,P62)))) -> 1239 | R62: =IF(AND(N62=""),"",IF(AND(Q62=""),"",N62-Q62)) -> 0 | X62: =IF(ISNA(VLOOKUP($Y$61,Master!A$8:N$127,7,FALSE)),"",VLOOKUP($Y$61,Master!A$8:AH$127,7,FALSE)) -> 0
A63: 3 | B63: =IFERROR(DATE(YEAR(B62),MONTH(B62)+1,DAY(B62)),"") -> 2025-10-01 | C63: =IF(AND($Y$61=""),"",C62) -> 41300 | D63: =IF(AND(C63=""),"",IF(AND($Y$61=""),"",ROUND(C63*Master!C$5%,0))) -> 23954 | E63: =IF(AND(C63=""),"",IF(AND($Y$61=""),"",ROUND(C63*Master!H$5%,0))) -> 4130 | F63: 69384 | G63: =IF(AND($Y$61=""),"",G62) -> 41300 | H63: =IF(AND(G63=""),"",IF(AND($Y$61=""),"",ROUND(G63*Master!C$4%,0))) -> 22715 | I63: =IF(AND(G63=""),"",IF(AND($Y$61=""),"",ROUND(G63*Master!H$4%,0))) -> 4130 | J63: 68145 | K63: 0 | L63: 1239 | M63: 0 | N63: 1239 | O63: 1239 | P63: 0 | Q63: =IF(AND($Y$61=""),"",IF(AND(C63=""),"",IF(AND(O63=""),"",SUM(O63,P63)))) -> 1239 | R63: 0
A65: TOTAL | C65: =IF(AND($Y$61=""),"",SUM(C61:C64)) -> 123900 | D65: =IF(AND($Y$61=""),"",SUM(D61:D64)) -> 71862 | E65: 12390 | F65: 208152 | G65: 123900 | H65: 68145 | I65: 12390 | J65: 204435 | K65: 0 | L65: 3717 | M65: 0 | N65: 3717 | O65: =IF(AND($Y$61=""),"",SUM(O61:O64)) -> 3717 | P65: 0 | Q65: 3717 | R65: 0
O67: SEAL AND SIGN OF DDO
B68: S.R. | I68: Date :
B69: For Copying And Necessary Action
A70: 1 | B70: Treasury Officer / Deputy treasury Officer
A71: 2 | B71: Related Employee Sh./Smt./Mis.
A72: 3 | B72: File Register
O73: SEAL AND SIGN OF DDO
A75: =A38 -> DA (55% to 58%) Drawn Statement | W75: =IF(ISNA(VLOOKUP($Y$3,Master!A$8:N$127,4,FALSE)),"",VLOOKUP($Y$3,Master!A$8:AH$127,4,FALSE)) -> 3 | X75: =IF(ISNA(VLOOKUP($Y$3,Master!A$8:N$127,6,FALSE)),"",VLOOKUP($Y$3,Master!A$8:AH$127,6,FALSE)) -> GPF-2004 | Y75: GPF-2004 | Z75: GPF | AA75: =IF(ISNA(VLOOKUP($Y$77,Master!A$8:N$127,7,FALSE)),"",VLOOKUP($Y$77,Master!A$8:AH$127,7,FALSE)) -> 0
A76: =IF(AND(Master!C71=""),"",CONCATENATE("Office Of ",Master!C71)) ->  | X76: =IF(ISNA(VLOOKUP($Y$3,Master!A$8:N$127,8,FALSE)),"",VLOOKUP($Y$3,Master!A$8:AH$127,8,FALSE)) -> 45839 | Y76: YES
E77: Name of Employee :- | J77: =IF(ISNA(VLOOKUP($Y$77,Master!A$8:N$127,2,FALSE)),"",VLOOKUP($Y$77,Master!A$8:AH$127,2,FALSE)) -> ABHIMANYU SINGH | O77: POST:- | P77: =IF(ISNA(VLOOKUP($Y$77,Master!A$8:N$127,3,FALSE)),"",VLOOKUP($Y$77,Master!A$8:AH$127,3,FALSE)) -> TEACHER L-1 | X77: Sr. No. :- | Y77: =IF(AND(Master!B14="",Master!E14=""),"",7) -> 7
A79: Serial No. | B79: Month & Year | C79: Pay Due | G79: Pay Drawn | K79: Pay Difference | O79: Deducation | R79: To be paid in Cash Col. 14 form 18 | S79: Treasury Bill@ Voucher No.& Date
C80: Basic | D80: Dearness Allowance | E80: H.R.A. | F80: Total Col. 3 to 5 | G80: Basic | H80: Dearness Allowance | I80: H.R.A. | J80: Total Col. 7 to 9 | K80: Basic Pay | L80: Dearness Allowance | M80: H.R.A. | N80: Total Col. 11 to 13 | O80: GPF / GPF-2004 | P80: Income Tax / TDS | Q80: Total of Dedu ction
A81: 1 | B81: 2 | C81: 3 | D81: 4 | E81: 5 | F81: 6 | G81: 7 | H81: 8 | I81: 9 | J81: 10 | K81: 11 | L81: 12 | M81: 13 | N81: 14 | O81: 15 | P81: 17 | Q81: 18 | R81: 19 | S81: 20
A82: 1 | B82: =IFERROR(IF(ISNA(VLOOKUP(Y77,Master!A$8:N$127,8,FALSE)),"",VLOOKUP($Y77,Master!A$8:AH$127,8,FALSE)),"") -> 2025-09-01 | C82: =IFERROR(IF(ISNA(VLOOKUP(Y77,Master!A$8:N$127,5,FALSE)),"",VLOOKUP($Y$77,Master!A$8:AH$127,5,FALSE)),"") -> 67000 | D82: =IF(AND(C82=""),"",IF(AND($Y$77=""),"",ROUND(C82*Master!C$5%,0))) -> 38860 | E82: =IF(AND(C82=""),"",IF(AND($Y$77=""),"",ROUND(C82*Master!H$5%,0))) -> 6700 | F82: =IF(AND(C82=""),"",SUM(C82:E82)) -> 112560 | G82: =IFERROR(IF(ISNA(VLOOKUP($Y$77,Master!A$8:N$127,5,FALSE)),"",VLOOKUP($Y$77,Master!A$8:AH$127,5,FALSE)),"") -> 67000 | H82: =IF(AND(G82=""),"",IF(AND($Y$77=""),"",ROUND(G82*Master!C$4%,0))) -> 36850 | I82: =IF(AND(G82=""),"",IF(AND($Y$77=""),"",ROUND(G82*Master!H$4%,0))) -> 6700 | J82: =IF(AND(C82=""),"",SUM(G82:I82)) -> 110550 | K82: =IF(AND(C82=""),"",IF(AND(G82=""),"",C82-G82)) -> 0 | L82: =IF(AND(D82=""),"",IF(AND(H82=""),"",D82-H82)) -> 2010 | M82: =IF(AND(E82=""),"",IF(AND(I82=""),"",E82-I82)) -> 0 | N82: =IF(AND(F82=""),"",IF(AND(J82=""),"",F82-J82)) -> 2010 | O82: =IF(AND(C82=""),"",N82-P82) -> 2010 | P82: =IF(AND($Y$77=""),"",IF(AND(N82=""),"",ROUND(N82*AA$75%,0))) -> 0 | Q82: =IF(AND($Y$77=""),"",IF(AND(C82=""),"",IF(AND(O82=""),"",SUM(O82,P82)))) -> 2010 | R82: =IF(AND(N82=""),"",IF(AND(Q82=""),"",N82-Q82)) -> 0
A83: 2 | B83: =IFERROR(DATE(YEAR(B82),MONTH(B82)+1,DAY(B82)),"") -> 2025-10-01 | C83: =IF(AND($Y$77=""),"",C82) -> 67000 | D83: =IF(AND(C83=""),"",IF(AND($Y$77=""),"",ROUND(C83*Master!C$5%,0))) -> 38860 | E83: =IF(AND(C83=""),"",IF(AND($Y$77=""),"",ROUND(C83*Master!H$5%,0))) -> 6700 | F83: =IF(AND(C83=""),"",SUM(C83:E83)) -> 112560 | G83: =IF(AND($Y$77=""),"",G82) -> 67000 | H83: =IF(AND(G83=""),"",IF(AND($Y$77=""),"",ROUND(G83*Master!C$4%,0))) -> 36850 | I83: =IF(AND(G83=""),"",IF(AND($Y$77=""),"",ROUND(G83*Master!H$4%,0))) -> 6700 | J83: 110550 | K83: 0 | L83: 2010 | M83: 0 | N83: 2010 | O83: =IF(AND(C83=""),"",N83-P83) -> 2010 | P83: =IF(AND($Y$77=""),"",IF(AND(N83=""),"",ROUND(N83*AA$75%,0))) -> 0 | Q83: =IF(AND($Y$77=""),"",IF(AND(C83=""),"",IF(AND(O83=""),"",SUM(O83,P83)))) -> 2010 | R83: =IF(AND(N83=""),"",IF(AND(Q83=""),"",N83-Q83)) -> 0
A84: 3 | B84: =IFERROR(DATE(YEAR(B83),MONTH(B83)+1,DAY(B83)),"") -> 2025-11-01 | C84: =IF(AND($Y$77=""),"",C83) -> 67000 | D84: =IF(AND(C84=""),"",IF(AND($Y$77=""),"",ROUND(C84*Master!C$5%,0))) -> 38860 | E84: =IF(AND(C84=""),"",IF(AND($Y$77=""),"",ROUND(C84*Master!H$5%,0))) -> 6700 | F84: =IF(AND(C84=""),"",SUM(C84:E84)) -> 112560 | G84: =IF(AND($Y$77=""),"",G83) -> 67000 | H84: =IF(AND(G84=""),"",IF(AND($Y$77=""),"",ROUND(G84*Master!C$4%,0))) -> 36850 | I84: =IF(AND(G84=""),"",IF(AND($Y$77=""),"",ROUND(G84*Master!H$4%,0))) -> 6700 | J84: =IF(AND(C84=""),"",SUM(G84:I84)) -> 110550 | K84: 0 | L84: 2010 | M84: =IF(AND(E84=""),"",IF(AND(I84=""),"",E84-I84)) -> 0 | N84: =IF(AND(F84=""),"",IF(AND(J84=""),"",F84-J84)) -> 2010 | O84: 2010 | P84: 0 | Q84: =IF(AND($Y$77=""),"",IF(AND(C84=""),"",IF(AND(O84=""),"",SUM(O84,P84)))) -> 2010 | R84: 0
A86: TOTAL | C86: =IF(AND($Y$77=""),"",SUM(C82:C85)) -> 201000 | D86: =IF(AND($Y$77=""),"",SUM(D82:D85)) -> 116580 | E86: 20100 | F86: 337680 | G86: 201000 | H86: 110550 | I86: 20100 | J86: 331650 | K86: 0 | L86: 6030 | M86: 0 | N86: 6030 | O86: 6030 | P86: 0 | Q86: 6030 | R86: 0
E88: Name of Employee :- | J88: =IF(ISNA(VLOOKUP($Y$90,Master!A$8:N$127,2,FALSE)),"",VLOOKUP($Y$90,Master!A$8:AH$127,2,FALSE)) -> PUSHPENDRA | O88: POST:- | P88: =IF(ISNA(VLOOKUP($Y$90,Master!A$8:N$127,3,FALSE)),"",VLOOKUP($Y$90,Master!A$8:AH$127,3,FALSE)) -> TEACHER L-1
A90: 1 | B90: =IFERROR(IF(ISNA(VLOOKUP(Y90,Master!A$8:N$127,8,FALSE)),"",VLOOKUP($Y90,Master!A$8:AH$127,8,FALSE)),"") -> 2025-07-01 | C90: =IFERROR(IF(ISNA(VLOOKUP($Y$90,Master!A$8:N$127,5,FALSE)),"",VLOOKUP($Y$90,Master!A$8:AH$127,5,FALSE)),"") -> 46500 | D90: =IF(AND(C90=""),"",IF(AND($Y$90=""),"",ROUND(C90*Master!C$5%,0))) -> 26970 | E90: =IF(AND(C90=""),"",IF(AND($Y$90=""),"",ROUND(C90*Master!H$5%,0))) -> 4650 | F90: =IF(AND(C90=""),"",SUM(C90:E90)) -> 78120 | G90: =IFERROR(IF(ISNA(VLOOKUP($Y$90,Master!A$8:N$127,5,FALSE)),"",VLOOKUP($Y$90,Master!A$8:AH$127,5,FALSE)),"") -> 46500 | H90: =IF(AND(G90=""),"",IF(AND($Y$90=""),"",ROUND(G90*Master!C$4%,0))) -> 25575 | I90: =IF(AND(G90=""),"",IF(AND($Y$90=""),"",ROUND(G90*Master!H$4%,0))) -> 4650 | J90: =IF(AND(C90=""),"",SUM(G90:I90)) -> 76725 | K90: =IF(AND(C90=""),"",IF(AND(G90=""),"",C90-G90)) -> 0 | L90: =IF(AND(D90=""),"",IF(AND(H90=""),"",D90-H90)) -> 1395 | M90: =IF(AND(E90=""),"",IF(AND(I90=""),"",E90-I90)) -> 0 | N90: =IF(AND(F90=""),"",IF(AND(J90=""),"",F90-J90)) -> 1395 | O90: =IF(AND(C90=""),"",N90-P90) -> 1395 | P90: =IF(AND($Y$90=""),"",IF(AND(N90=""),"",ROUND(N90*$X$91%,0))) -> 0 | Q90: =IF(AND($Y$90=""),"",IF(AND(C90=""),"",IF(AND(O90=""),"",SUM(O90,P90)))) -> 1395 | R90: =IF(AND(N90=""),"",IF(AND(Q90=""),"",N90-Q90)) -> 0 | X90: Sr. No. :- | Y90: =IF(AND(Master!B15="",Master!E15=""),"",8) -> 8
A91: 2 | B91: =IFERROR(DATE(YEAR(B90),MONTH(B90)+1,DAY(B90)),"") -> 2025-08-01 | C91: =IF(AND($Y$90=""),"",C90) -> 46500 | D91: =IF(AND(C91=""),"",IF(AND($Y$90=""),"",ROUND(C91*Master!C$5%,0))) -> 26970 | E91: =IF(AND(C91=""),"",IF(AND($Y$90=""),"",ROUND(C91*Master!H$5%,0))) -> 4650 | F91: 78120 | G91: =IF(AND($Y$90=""),"",G90) -> 46500 | H91: =IF(AND(G91=""),"",IF(AND($Y$90=""),"",ROUND(G91*Master!C$4%,0))) -> 25575 | I91: =IF(AND(G91=""),"",IF(AND($Y$90=""),"",ROUND(G91*Master!H$4%,0))) -> 4650 | J91: =IF(AND(C91=""),"",SUM(G91:I91)) -> 76725 | K91: =IF(AND(C91=""),"",IF(AND(G91=""),"",C91-G91)) -> 0 | L91: =IF(AND(D91=""),"",IF(AND(H91=""),"",D91-H91)) -> 1395 | M91: 0 | N91: 1395 | O91: =IF(AND(C91=""),"",N91-P91) -> 1395 | P91: =IF(AND($Y$90=""),"",IF(AND(N91=""),"",ROUND(N91*$X$91%,0))) -> 0 | Q91: =IF(AND($Y$90=""),"",IF(AND(C91=""),"",IF(AND(O91=""),"",SUM(O91,P91)))) -> 1395 | R91: =IF(AND(N91=""),"",IF(AND(Q91=""),"",N91-Q91)) -> 0 | X91: =IF(ISNA(VLOOKUP($Y$90,Master!A$8:N$127,7,FALSE)),"",VLOOKUP($Y$90,Master!A$8:AH$127,7,FALSE)) -> 0
A92: 3 | B92: =IFERROR(DATE(YEAR(B91),MONTH(B91)+1,DAY(B91)),"") -> 2025-09-01 | C92: =IF(AND($Y$90=""),"",C91) -> 46500 | D92: =IF(AND(C92=""),"",IF(AND($Y$90=""),"",ROUND(C92*Master!C$5%,0))) -> 26970 | E92: =IF(AND(C92=""),"",IF(AND($Y$90=""),"",ROUND(C92*Master!H$5%,0))) -> 4650 | F92: 78120 | G92: =IF(AND($Y$90=""),"",G91) -> 46500 | H92: =IF(AND(G92=""),"",IF(AND($Y$90=""),"",ROUND(G92*Master!C$4%,0))) -> 25575 | I92: =IF(AND(G92=""),"",IF(AND($Y$90=""),"",ROUND(G92*Master!H$4%,0))) -> 4650 | J92: 76725 | K92: =IF(AND(C92=""),"",IF(AND(G92=""),"",C92-G92)) -> 0 | L92: =IF(AND(D92=""),"",IF(AND(H92=""),"",D92-H92)) -> 1395 | M92: 0 | N92: 1395 | O92: =IF(AND(C92=""),"",N92-P92) -> 1395 | P92: 0 | Q92: =IF(AND($Y$90=""),"",IF(AND(C92=""),"",IF(AND(O92=""),"",SUM(O92,P92)))) -> 1395 | R92: 0
A94: TOTAL | C94: =IF(AND($Y$90=""),"",SUM(C90:C93)) -> 139500 | D94: =IF(AND($Y$90=""),"",SUM(D90:D93)) -> 80910 | E94: 13950 | F94: 234360 | G94: 139500 | H94: 76725 | I94: 13950 | J94: 230175 | K94: 0 | L94: 4185 | M94: 0 | N94: 4185 | O94: 4185 | P94: 0 | Q94: =IF(AND($Y$90=""),"",SUM(Q90:Q93)) -> 4185 | R94: 0
E96: Name of Employee :- | J96: =IF(ISNA(VLOOKUP($Y$98,Master!A$8:N$127,2,FALSE)),"",VLOOKUP($Y$98,Master!A$8:AH$127,2,FALSE)) -> MANOJ KUMAR PANCHORI | O96: POST:- | P96: =IF(ISNA(VLOOKUP($Y$98,Master!A$8:N$127,3,FALSE)),"",VLOOKUP($Y$98,Master!A$8:AH$127,3,FALSE)) -> TEACHER L-2
A98: 1 | B98: =IFERROR(IF(ISNA(VLOOKUP(Y98,Master!A$8:N$127,8,FALSE)),"",VLOOKUP($Y98,Master!A$8:AH$127,8,FALSE)),"") -> 2025-07-01 | C98: =IFERROR(IF(ISNA(VLOOKUP($Y$98,Master!A$8:N$127,5,FALSE)),"",VLOOKUP($Y$98,Master!A$8:AH$127,5,FALSE)),"") -> 50800 | D98: =IF(AND(C98=""),"",IF(AND($Y$98=""),"",ROUND(C98*Master!C$5%,0))) -> 29464 | E98: =IF(AND(C98=""),"",IF(AND($Y$98=""),"",ROUND(C98*Master!H$5%,0))) -> 5080 | F98: =IF(AND(C98=""),"",SUM(C98:E98)) -> 85344 | G98: =IFERROR(IF(ISNA(VLOOKUP($Y$98,Master!A$8:N$127,5,FALSE)),"",VLOOKUP($Y$98,Master!A$8:AH$127,5,FALSE)),"") -> 50800 | H98: =IF(AND(G98=""),"",IF(AND($Y$98=""),"",ROUND(G98*Master!C$4%,0))) -> 27940 | I98: =IF(AND(G98=""),"",IF(AND($Y$98=""),"",ROUND(G98*Master!H$4%,0))) -> 5080 | J98: =IF(AND(C98=""),"",SUM(G98:I98)) -> 83820 | K98: =IF(AND(C98=""),"",IF(AND(G98=""),"",C98-G98)) -> 0 | L98: =IF(AND(D98=""),"",IF(AND(H98=""),"",D98-H98)) -> 1524 | M98: =IF(AND(E98=""),"",IF(AND(I98=""),"",E98-I98)) -> 0 | N98: =IF(AND(F98=""),"",IF(AND(J98=""),"",F98-J98)) -> 1524 | O98: =IF(AND(C98=""),"",N98-P98) -> 1524 | P98: =IF(AND($Y$98=""),"",IF(AND(N98=""),"",ROUND(N98*$X$99%,0))) -> 0 | Q98: =IF(AND($Y$98=""),"",IF(AND(C98=""),"",IF(AND(O98=""),"",SUM(O98,P98)))) -> 1524 | R98: =IF(AND(N98=""),"",IF(AND(Q98=""),"",N98-Q98)) -> 0 | X98: Sr. No. :- | Y98: =IF(AND(Master!B16="",Master!E16=""),"",9) -> 9
A99: 2 | B99: =IFERROR(DATE(YEAR(B98),MONTH(B98)+1,DAY(B98)),"") -> 2025-08-01 | C99: =IF(AND($Y$98=""),"",C98) -> 50800 | D99: =IF(AND(C99=""),"",IF(AND($Y$98=""),"",ROUND(C99*Master!C$5%,0))) -> 29464 | E99: =IF(AND(C99=""),"",IF(AND($Y$98=""),"",ROUND(C99*Master!H$5%,0))) -> 5080 | F99: 85344 | G99: =IF(AND($Y$98=""),"",G98) -> 50800 | H99: =IF(AND(G99=""),"",IF(AND($Y$98=""),"",ROUND(G99*Master!C$4%,0))) -> 27940 | I99: =IF(AND(G99=""),"",IF(AND($Y$98=""),"",ROUND(G99*Master!H$4%,0))) -> 5080 | J99: 83820 | K99: 0 | L99: 1524 | M99: 0 | N99: 1524 | O99: =IF(AND(C99=""),"",N99-P99) -> 1524 | P99: =IF(AND($Y$98=""),"",IF(AND(N99=""),"",ROUND(N99*$X$99%,0))) -> 0 | Q99: =IF(AND($Y$98=""),"",IF(AND(C99=""),"",IF(AND(O99=""),"",SUM(O99,P99)))) -> 1524 | R99: =IF(AND(N99=""),"",IF(AND(Q99=""),"",N99-Q99)) -> 0 | X99: =IF(ISNA(VLOOKUP($Y$98,Master!A$8:N$127,7,FALSE)),"",VLOOKUP($Y$98,Master!A$8:AH$127,7,FALSE)) -> 0
A100: 3 | B100: =IFERROR(DATE(YEAR(B99),MONTH(B99)+1,DAY(B99)),"") -> 2025-09-01 | C100: =IF(AND($Y$98=""),"",C99) -> 50800 | D100: =IF(AND(C100=""),"",IF(AND($Y$98=""),"",ROUND(C100*Master!C$5%,0))) -> 29464 | E100: =IF(AND(C100=""),"",IF(AND($Y$98=""),"",ROUND(C100*Master!H$5%,0))) -> 5080 | F100: 85344 | G100: =IF(AND($Y$98=""),"",G99) -> 50800 | H100: =IF(AND(G100=""),"",IF(AND($Y$98=""),"",ROUND(G100*Master!C$4%,0))) -> 27940 | I100: =IF(AND(G100=""),"",IF(AND($Y$98=""),"",ROUND(G100*Master!H$4%,0))) -> 5080 | J100: 83820 | K100: 0 | L100: 1524 | M100: 0 | N100: 1524 | O100: 1524 | P100: 0 | Q100: =IF(AND($Y$98=""),"",IF(AND(C100=""),"",IF(AND(O100=""),"",SUM(O100,P100)))) -> 1524 | R100: 0
A102: TOTAL | C102: =IF(AND($Y$98=""),"",SUM(C98:C101)) -> 152400 | D102: =IF(AND($Y$98=""),"",SUM(D98:D101)) -> 88392 | E102: 15240 | F102: 256032 | G102: 152400 | H102: 83820 | I102: 15240 | J102: 251460 | K102: 0 | L102: 4572 | M102: 0 | N102: 4572 | O102: 4572 | P102: 0 | Q102: 4572 | R102: 0
O104: SEAL AND SIGN OF DDO
B105: S.R. | I105: Date :
B106: For Copying And Necessary Action
A107: 1 | B107: Treasury Officer / Deputy treasury Officer
A108: 2 | B108: Related Employee Sh./Smt./Mis.
A109: 3 | B109: File Register
O110: SEAL AND SIGN OF DDO
A112: =A75 -> DA (55% to 58%) Drawn Statement | W112: =IF(ISNA(VLOOKUP($Y$3,Master!A$8:N$127,4,FALSE)),"",VLOOKUP($Y$3,Master!A$8:AH$127,4,FALSE)) -> 3 | X112: =IF(ISNA(VLOOKUP($Y$3,Master!A$8:N$127,6,FALSE)),"",VLOOKUP($Y$3,Master!A$8:AH$127,6,FALSE)) -> GPF-2004 | Y112: GPF-2004 | Z112: GPF | AA112: =IF(ISNA(VLOOKUP($Y$114,Master!A$8:N$127,7,FALSE)),"",VLOOKUP($Y$114,Master!A$8:AH$127,7,FALSE)) -> 0
A113: =IF(AND(Master!C105=""),"",CONCATENATE("Office Of ",Master!C105)) ->  | X113: =IF(ISNA(VLOOKUP($Y$3,Master!A$8:N$127,8,FALSE)),"",VLOOKUP($Y$3,Master!A$8:AH$127,8,FALSE)) -> 45839 | Y113: YES
E114: Name of Employee :- | J114: =IF(ISNA(VLOOKUP($Y$114,Master!A$8:N$127,2,FALSE)),"",VLOOKUP($Y$114,Master!A$8:AH$127,2,FALSE)) -> PRADIP SINGH | O114: POST:- | P114: =IF(ISNA(VLOOKUP($Y$114,Master!A$8:N$127,3,FALSE)),"",VLOOKUP($Y$114,Master!A$8:AH$127,3,FALSE)) -> TEACHER L-1 | X114: Sr. No. :- | Y114: =IF(AND(Master!B17="",Master!E17=""),"",10) -> 10
A116: Serial No. | B116: Month & Year | C116: Pay Due | G116: Pay Drawn | K116: Pay Difference | O116: Deducation | R116: To be paid in Cash Col. 14 form 18 | S116: Treasury Bill@ Voucher No.& Date
C117: Basic | D117: Dearness Allowance | E117: H.R.A. | F117: Total Col. 3 to 5 | G117: Basic | H117: Dearness Allowance | I117: H.R.A. | J117: Total Col. 7 to 9 | K117: Basic Pay | L117: Dearness Allowance | M117: H.R.A. | N117: Total Col. 11 to 13 | O117: GPF / GPF-2004 | P117: Income Tax / TDS | Q117: Total of Dedu ction
A118: 1 | B118: 2 | C118: 3 | D118: 4 | E118: 5 | F118: 6 | G118: 7 | H118: 8 | I118: 9 | J118: 10 | K118: 11 | L118: 12 | M118: 13 | N118: 14 | O118: 15 | P118: 17 | Q118: 18 | R118: 19 | S118: 20
A119: 1 | B119: =IFERROR(IF(ISNA(VLOOKUP(Y114,Master!A$8:N$127,8,FALSE)),"",VLOOKUP($Y114,Master!A$8:AH$127,8,FALSE)),"") -> 2025-07-01 | C119: =IFERROR(IF(ISNA(VLOOKUP(Y114,Master!A$8:N$127,5,FALSE)),"",VLOOKUP($Y$114,Master!A$8:AH$127,5,FALSE)),"") -> 50800 | D119: =IF(AND(C119=""),"",IF(AND($Y$114=""),"",ROUND(C119*Master!C$5%,0))) -> 29464 | E119: =IF(AND(C119=""),"",IF(AND($Y$114=""),"",ROUND(C119*Master!H$5%,0))) -> 5080 | F119: =IF(AND(C119=""),"",SUM(C119:E119)) -> 85344 | G119: =IFERROR(IF(ISNA(VLOOKUP($Y$114,Master!A$8:N$127,5,FALSE)),"",VLOOKUP($Y$114,Master!A$8:AH$127,5,FALSE)),"") -> 50800 | H119: =IF(AND(G119=""),"",IF(AND($Y$114=""),"",ROUND(G119*Master!C$4%,0))) -> 27940 | I119: =IF(AND(G119=""),"",IF(AND($Y$114=""),"",ROUND(G119*Master!H$4%,0))) -> 5080 | J119: =IF(AND(C119=""),"",SUM(G119:I119)) -> 83820 | K119: =IF(AND(C119=""),"",IF(AND(G119=""),"",C119-G119)) -> 0 | L119: =IF(AND(D119=""),"",IF(AND(H119=""),"",D119-H119)) -> 1524 | M119: =IF(AND(E119=""),"",IF(AND(I119=""),"",E119-I119)) -> 0 | N119: =IF(AND(F119=""),"",IF(AND(J119=""),"",F119-J119)) -> 1524 | O119: =IF(AND(C119=""),"",N119-P119) -> 1524 | P119: =IF(AND($Y$114=""),"",IF(AND(N119=""),"",ROUND(N119*$AA$112%,0))) -> 0 | Q119: =IF(AND($Y$114=""),"",IF(AND(C119=""),"",IF(AND(O119=""),"",SUM(O119,P119)))) -> 1524 | R119: =IF(AND(N119=""),"",IF(AND(Q119=""),"",N119-Q119)) -> 0
A120: 2 | B120: =IFERROR(DATE(YEAR(B119),MONTH(B119)+1,DAY(B119)),"") -> 2025-08-01 | C120: =IF(AND($Y$114=""),"",C119) -> 50800 | D120: =IF(AND(C120=""),"",IF(AND($Y$114=""),"",ROUND(C120*Master!C$5%,0))) -> 29464 | E120: =IF(AND(C120=""),"",IF(AND($Y$114=""),"",ROUND(C120*Master!H$5%,0))) -> 5080 | F120: =IF(AND(C120=""),"",SUM(C120:E120)) -> 85344 | G120: =IF(AND($Y$114=""),"",G119) -> 50800 | H120: =IF(AND(G120=""),"",IF(AND($Y$114=""),"",ROUND(G120*Master!C$4%,0))) -> 27940 | I120: =IF(AND(G120=""),"",IF(AND($Y$114=""),"",ROUND(G120*Master!H$4%,0))) -> 5080 | J120: 83820 | K120: 0 | L120: 1524 | M120: 0 | N120: 1524 | O120: =IF(AND(C120=""),"",N120-P120) -> 1524 | P120: =IF(AND($Y$114=""),"",IF(AND(N120=""),"",ROUND(N120*$AA$112%,0))) -> 0 | Q120: =IF(AND($Y$114=""),"",IF(AND(C120=""),"",IF(AND(O120=""),"",SUM(O120,P120)))) -> 1524 | R120: =IF(AND(N120=""),"",IF(AND(Q120=""),"",N120-Q120)) -> 0
A121: 3 | B121: =IFERROR(DATE(YEAR(B120),MONTH(B120)+1,DAY(B120)),"") -> 2025-09-01 | C121: =IF(AND($Y$114=""),"",C120) -> 50800 | D121: =IF(AND(C121=""),"",IF(AND($Y$114=""),"",ROUND(C121*Master!C$5%,0))) -> 29464 | E121: =IF(AND(C121=""),"",IF(AND($Y$114=""),"",ROUND(C121*Master!H$5%,0))) -> 5080 | F121: =IF(AND(C121=""),"",SUM(C121:E121)) -> 85344 | G121: =IF(AND($Y$114=""),"",G120) -> 50800 | H121: =IF(AND(G121=""),"",IF(AND($Y$114=""),"",ROUND(G121*Master!C$4%,0))) -> 27940 | I121: =IF(AND(G121=""),"",IF(AND($Y$114=""),"",ROUND(G121*Master!H$4%,0))) -> 5080 | J121: =IF(AND(C121=""),"",SUM(G121:I121)) -> 83820 | K121: 0 | L121: 1524 | M121: =IF(AND(E121=""),"",IF(AND(I121=""),"",E121-I121)) -> 0 | N121: =IF(AND(F121=""),"",IF(AND(J121=""),"",F121-J121)) -> 1524 | O121: 1524 | P121: 0 | Q121: =IF(AND($Y$114=""),"",IF(AND(C121=""),"",IF(AND(O121=""),"",SUM(O121,P121)))) -> 1524 | R121: 0
A123: TOTAL | C123: =IF(AND($Y$114=""),"",SUM(C119:C122)) -> 152400 | D123: =IF(AND($Y$114=""),"",SUM(D119:D122)) -> 88392 | E123: 15240 | F123: 256032 | G123: 152400 | H123: 83820 | I123: 15240 | J123: 251460 | K123: 0 | L123: 4572 | M123: 0 | N123: 4572 | O123: 4572 | P123: 0 | Q123: 4572 | R123: 0
E125: Name of Employee :- | J125: =IF(ISNA(VLOOKUP($Y$127,Master!A$8:N$127,2,FALSE)),"",VLOOKUP($Y$127,Master!A$8:AH$127,2,FALSE)) -> MANDIP SINGH BHULLAR | O125: POST:- | P125: =IF(ISNA(VLOOKUP($Y$127,Master!A$8:N$127,3,FALSE)),"",VLOOKUP($Y$127,Master!A$8:AH$127,3,FALSE)) -> P.T.I. IIIrd
A127: 1 | B127: =IFERROR(IF(ISNA(VLOOKUP(Y127,Master!A$8:N$127,8,FALSE)),"",VLOOKUP($Y127,Master!A$8:AH$127,8,FALSE)),"") -> 2025-07-01 | C127: =IFERROR(IF(ISNA(VLOOKUP($Y$127,Master!A$8:N$127,5,FALSE)),"",VLOOKUP($Y$127,Master!A$8:AH$127,5,FALSE)),"") -> 35800 | D127: =IF(AND(C127=""),"",IF(AND($Y$127=""),"",ROUND(C127*Master!C$5%,0))) -> 20764 | E127: =IF(AND(C127=""),"",IF(AND($Y$127=""),"",ROUND(C127*Master!H$5%,0))) -> 3580 | F127: =IF(AND(C127=""),"",SUM(C127:E127)) -> 60144 | G127: =IFERROR(IF(ISNA(VLOOKUP($Y$127,Master!A$8:N$127,5,FALSE)),"",VLOOKUP($Y$127,Master!A$8:AH$127,5,FALSE)),"") -> 35800 | H127: =IF(AND(G127=""),"",IF(AND($Y$127=""),"",ROUND(G127*Master!C$4%,0))) -> 19690 | I127: =IF(AND(G127=""),"",IF(AND($Y$127=""),"",ROUND(G127*Master!H$4%,0))) -> 3580 | J127: =IF(AND(C127=""),"",SUM(G127:I127)) -> 59070 | K127: =IF(AND(C127=""),"",IF(AND(G127=""),"",C127-G127)) -> 0 | L127: =IF(AND(D127=""),"",IF(AND(H127=""),"",D127-H127)) -> 1074 | M127: =IF(AND(E127=""),"",IF(AND(I127=""),"",E127-I127)) -> 0 | N127: =IF(AND(F127=""),"",IF(AND(J127=""),"",F127-J127)) -> 1074 | O127: =IF(AND(C127=""),"",N127-P127) -> 1074 | P127: =IF(AND($Y$127=""),"",IF(AND(N127=""),"",ROUND(N127*$X$128%,0))) -> 0 | Q127: =IF(AND($Y$127=""),"",IF(AND(C127=""),"",IF(AND(O127=""),"",SUM(O127,P127)))) -> 1074 | R127: =IF(AND(N127=""),"",IF(AND(Q127=""),"",N127-Q127)) -> 0 | X127: Sr. No. :- | Y127: =IF(AND(Master!B18="",Master!E18=""),"",11) -> 11
A128: 2 | B128: =IFERROR(DATE(YEAR(B127),MONTH(B127)+1,DAY(B127)),"") -> 2025-08-01 | C128: =IF(AND($Y$127=""),"",C127) -> 35800 | D128: =IF(AND(C128=""),"",IF(AND($Y$127=""),"",ROUND(C128*Master!C$5%,0))) -> 20764 | E128: =IF(AND(C128=""),"",IF(AND($Y$127=""),"",ROUND(C128*Master!H$5%,0))) -> 3580 | F128: 60144 | G128: =IF(AND($Y$127=""),"",G127) -> 35800 | H128: =IF(AND(G128=""),"",IF(AND($Y$127=""),"",ROUND(G128*Master!C$4%,0))) -> 19690 | I128: =IF(AND(G128=""),"",IF(AND($Y$127=""),"",ROUND(G128*Master!H$4%,0))) -> 3580 | J128: 59070 | K128: =IF(AND(C128=""),"",IF(AND(G128=""),"",C128-G128)) -> 0 | L128: =IF(AND(D128=""),"",IF(AND(H128=""),"",D128-H128)) -> 1074 | M128: 0 | N128: 1074 | O128: =IF(AND(C128=""),"",N128-P128) -> 1074 | P128: =IF(AND($Y$127=""),"",IF(AND(N128=""),"",ROUND(N128*$X$128%,0))) -> 0 | Q128: =IF(AND($Y$127=""),"",IF(AND(C128=""),"",IF(AND(O128=""),"",SUM(O128,P128)))) -> 1074 | R128: =IF(AND(N128=""),"",IF(AND(Q128=""),"",N128-Q128)) -> 0 | X128: =IF(ISNA(VLOOKUP($Y$127,Master!A$8:N$127,7,FALSE)),"",VLOOKUP($Y$127,Master!A$8:AH$127,7,FALSE)) -> 0
A129: 3 | B129: =IFERROR(DATE(YEAR(B128),MONTH(B128)+1,DAY(B128)),"") -> 2025-09-01 | C129: =IF(AND($Y$127=""),"",C128) -> 35800 | D129: =IF(AND(C129=""),"",IF(AND($Y$127=""),"",ROUND(C129*Master!C$5%,0))) -> 20764 | E129: =IF(AND(C129=""),"",IF(AND($Y$127=""),"",ROUND(C129*Master!H$5%,0))) -> 3580 | F129: 60144 | G129: =IF(AND($Y$127=""),"",G128) -> 35800 | H129: =IF(AND(G129=""),"",IF(AND($Y$127=""),"",ROUND(G129*Master!C$4%,0))) -> 19690 | I129: =IF(AND(G129=""),"",IF(AND($Y$127=""),"",ROUND(G129*Master!H$4%,0))) -> 3580 | J129: 59070 | K129: =IF(AND(C129=""),"",IF(AND(G129=""),"",C129-G129)) -> 0 | L129: 1074 | M129: 0 | N129: 1074 | O129: 1074 | P129: 0 | Q129: =IF(AND($Y$127=""),"",IF(AND(C129=""),"",IF(AND(O129=""),"",SUM(O129,P129)))) -> 1074 | R129: 0
A131: TOTAL | C131: =IF(AND($Y$127=""),"",SUM(C127:C130)) -> 107400 | D131: =IF(AND($Y$127=""),"",SUM(D127:D130)) -> 62292 | E131: 10740 | F131: 180432 | G131: 107400 | H131: 59070 | I131: 10740 | J131: 177210 | K131: 0 | L131: 3222 | M131: 0 | N131: 3222 | O131: 3222 | P131: 0 | Q131: 3222 | R131: 0
E133: Name of Employee :- | J133: =IF(ISNA(VLOOKUP($Y$135,Master!A$8:N$127,2,FALSE)),"",VLOOKUP($Y$135,Master!A$8:AH$127,2,FALSE)) -> LALIT KUMAR | O133: POST:- | P133: =IF(ISNA(VLOOKUP($Y$135,Master!A$8:N$127,3,FALSE)),"",VLOOKUP($Y$135,Master!A$8:AH$127,3,FALSE)) -> P.T.I. IInd
A135: 1 | B135: =IFERROR(IF(ISNA(VLOOKUP(Y135,Master!A$8:N$127,8,FALSE)),"",VLOOKUP($Y135,Master!A$8:AH$127,8,FALSE)),"") -> 2025-07-01 | C135: =IFERROR(IF(ISNA(VLOOKUP($Y$135,Master!A$8:N$127,5,FALSE)),"",VLOOKUP($Y$135,Master!A$8:AH$127,5,FALSE)),"") -> 45100 | D135: =IF(AND(C135=""),"",IF(AND($Y$135=""),"",ROUND(C135*Master!C$5%,0))) -> 26158 | E135: =IF(AND(C135=""),"",IF(AND($Y$135=""),"",ROUND(C135*Master!H$5%,0))) -> 4510 | F135: =IF(AND(C135=""),"",SUM(C135:E135)) -> 75768 | G135: =IFERROR(IF(ISNA(VLOOKUP($Y$135,Master!A$8:N$127,5,FALSE)),"",VLOOKUP($Y$135,Master!A$8:AH$127,5,FALSE)),"") -> 45100 | H135: =IF(AND(G135=""),"",IF(AND($Y$135=""),"",ROUND(G135*Master!C$4%,0))) -> 24805 | I135: =IF(AND(G135=""),"",IF(AND($Y$135=""),"",ROUND(G135*Master!H$4%,0))) -> 4510 | J135: =IF(AND(C135=""),"",SUM(G135:I135)) -> 74415 | K135: =IF(AND(C135=""),"",IF(AND(G135=""),"",C135-G135)) -> 0 | L135: =IF(AND(D135=""),"",IF(AND(H135=""),"",D135-H135)) -> 1353 | M135: =IF(AND(E135=""),"",IF(AND(I135=""),"",E135-I135)) -> 0 | N135: =IF(AND(F135=""),"",IF(AND(J135=""),"",F135-J135)) -> 1353 | O135: =IF(AND(C135=""),"",N135-P135) -> 1353 | P135: =IF(AND($Y$135=""),"",IF(AND(N135=""),"",ROUND(N135*$X$136%,0))) -> 0 | Q135: =IF(AND($Y$135=""),"",IF(AND(C135=""),"",IF(AND(O135=""),"",SUM(O135,P135)))) -> 1353 | R135: =IF(AND(N135=""),"",IF(AND(Q135=""),"",N135-Q135)) -> 0 | X135: Sr. No. :- | Y135: =IF(AND(Master!B19="",Master!E19=""),"",12) -> 12
A136: 2 | B136: =IFERROR(DATE(YEAR(B135),MONTH(B135)+1,DAY(B135)),"") -> 2025-08-01 | C136: =IF(AND($Y$135=""),"",C135) -> 45100 | D136: =IF(AND(C136=""),"",IF(AND($Y$135=""),"",ROUND(C136*Master!C$5%,0))) -> 26158 | E136: =IF(AND(C136=""),"",IF(AND($Y$135=""),"",ROUND(C136*Master!H$5%,0))) -> 4510 | F136: 75768 | G136: =IF(AND($Y$135=""),"",G135) -> 45100 | H136: =IF(AND(G136=""),"",IF(AND($Y$135=""),"",ROUND(G136*Master!C$4%,0))) -> 24805 | I136: =IF(AND(G136=""),"",IF(AND($Y$135=""),"",ROUND(G136*Master!H$4%,0))) -> 4510 | J136: 74415 | K136: 0 | L136: 1353 | M136: 0 | N136: 1353 | O136: =IF(AND(C136=""),"",N136-P136) -> 1353 | P136: =IF(AND($Y$135=""),"",IF(AND(N136=""),"",ROUND(N136*$X$136%,0))) -> 0 | Q136: =IF(AND($Y$135=""),"",IF(AND(C136=""),"",IF(AND(O136=""),"",SUM(O136,P136)))) -> 1353 | R136: =IF(AND(N136=""),"",IF(AND(Q136=""),"",N136-Q136)) -> 0 | X136: =IF(ISNA(VLOOKUP($Y$135,Master!A$8:N$127,7,FALSE)),"",VLOOKUP($Y$135,Master!A$8:AH$127,7,FALSE)) -> 0
A137: 3 | B137: =IFERROR(DATE(YEAR(B136),MONTH(B136)+1,DAY(B136)),"") -> 2025-09-01 | C137: =IF(AND($Y$135=""),"",C136) -> 45100 | D137: =IF(AND(C137=""),"",IF(AND($Y$135=""),"",ROUND(C137*Master!C$5%,0))) -> 26158 | E137: =IF(AND(C137=""),"",IF(AND($Y$135=""),"",ROUND(C137*Master!H$5%,0))) -> 4510 | F137: 75768 | G137: =IF(AND($Y$135=""),"",G136) -> 45100 | H137: =IF(AND(G137=""),"",IF(AND($Y$135=""),"",ROUND(G137*Master!C$4%,0))) -> 24805 | I137: =IF(AND(G137=""),"",IF(AND($Y$135=""),"",ROUND(G137*Master!H$4%,0))) -> 4510 | J137: 74415 | K137: 0 | L137: 1353 | M137: 0 | N137: 1353 | O137: 1353 | P137: 0 | Q137: =IF(AND($Y$135=""),"",IF(AND(C137=""),"",IF(AND(O137=""),"",SUM(O137,P137)))) -> 1353 | R137: 0
A139: TOTAL | C139: =IF(AND($Y$135=""),"",SUM(C135:C138)) -> 135300 | D139: =IF(AND($Y$135=""),"",SUM(D135:D138)) -> 78474 | E139: 13530 | F139: 227304 | G139: 135300 | H139: 74415 | I139: 13530 | J139: 223245 | K139: 0 | L139: 4059 | M139: 0 | N139: 4059 | O139: 4059 | P139: 0 | Q139: 4059 | R139: 0
O141: SEAL AND SIGN OF DDO
B142: S.R. | I142: Date :
B143: For Copying And Necessary Action
A144: 1 | B144: Treasury Officer / Deputy treasury Officer
A145: 2 | B145: Related Employee Sh./Smt./Mis.
A146: 3 | B146: File Register
O147: SEAL AND SIGN OF DDO
A149: =A112 -> DA (55% to 58%) Drawn Statement | W149: =IF(ISNA(VLOOKUP($Y$3,Master!A$8:N$127,4,FALSE)),"",VLOOKUP($Y$3,Master!A$8:AH$127,4,FALSE)) -> 3 | X149: =IF(ISNA(VLOOKUP($Y$3,Master!A$8:N$127,6,FALSE)),"",VLOOKUP($Y$3,Master!A$8:AH$127,6,FALSE)) -> GPF-2004 | Y149: GPF-2004 | Z149: GPF | AA149: =IF(ISNA(VLOOKUP($Y$151,Master!A$8:N$127,7,FALSE)),"",VLOOKUP($Y$151,Master!A$8:AH$127,7,FALSE)) -> 0
A150: =IF(AND(Master!C139=""),"",CONCATENATE("Office Of ",Master!C139)) ->  | X150: =IF(ISNA(VLOOKUP($Y$3,Master!A$8:N$127,8,FALSE)),"",VLOOKUP($Y$3,Master!A$8:AH$127,8,FALSE)) -> 45839 | Y150: YES
E151: Name of Employee :- | J151: =IF(ISNA(VLOOKUP($Y$151,Master!A$8:N$127,2,FALSE)),"",VLOOKUP($Y$151,Master!A$8:AH$127,2,FALSE)) -> SAMPAT RAJ | O151: POST:- | P151: =IF(ISNA(VLOOKUP($Y$151,Master!A$8:N$127,3,FALSE)),"",VLOOKUP($Y$151,Master!A$8:AH$127,3,FALSE)) -> Sr. Teacher | X151: Sr. No. :- | Y151: =IF(AND(Master!B20="",Master!E20=""),"",13) -> 13
A153: Serial No. | B153: Month & Year | C153: Pay Due | G153: Pay Drawn | K153: Pay Difference | O153: Deducation | R153: To be paid in Cash Col. 14 form 18 | S153: Treasury Bill@ Voucher No.& Date
C154: Basic | D154: Dearness Allowance | E154: H.R.A. | F154: Total Col. 3 to 5 | G154: Basic | H154: Dearness Allowance | I154: H.R.A. | J154: Total Col. 7 to 9 | K154: Basic Pay | L154: Dearness Allowance | M154: H.R.A. | N154: Total Col. 11 to 13 | O154: GPF / GPF-2004 | P154: Income Tax / TDS | Q154: Total of Dedu ction
A155: 1 | B155: 2 | C155: 3 | D155: 4 | E155: 5 | F155: 6 | G155: 7 | H155: 8 | I155: 9 | J155: 10 | K155: 11 | L155: 12 | M155: 13 | N155: 14 | O155: 15 | P155: 17 | Q155: 18 | R155: 19 | S155: 20
A156: 1 | B156: =IFERROR(IF(ISNA(VLOOKUP(Y151,Master!A$8:N$127,8,FALSE)),"",VLOOKUP($Y151,Master!A$8:AH$127,8,FALSE)),"") -> 2025-07-01 | C156: =IFERROR(IF(ISNA(VLOOKUP(Y151,Master!A$8:N$127,5,FALSE)),"",VLOOKUP($Y$151,Master!A$8:AH$127,5,FALSE)),"") -> 67200 | D156: =IF(AND(C156=""),"",IF(AND($Y$151=""),"",ROUND(C156*Master!C$5%,0))) -> 38976 | E156: =IF(AND(C156=""),"",IF(AND($Y$151=""),"",ROUND(C156*Master!H$5%,0))) -> 6720 | F156: =IF(AND(C156=""),"",SUM(C156:E156)) -> 112896 | G156: =IFERROR(IF(ISNA(VLOOKUP($Y$151,Master!A$8:N$127,5,FALSE)),"",VLOOKUP($Y$151,Master!A$8:AH$127,5,FALSE)),"") -> 67200 | H156: =IF(AND(G156=""),"",IF(AND($Y$151=""),"",ROUND(G156*Master!C$4%,0))) -> 36960 | I156: =IF(AND(G156=""),"",IF(AND($Y$151=""),"",ROUND(G156*Master!H$4%,0))) -> 6720 | J156: =IF(AND(C156=""),"",SUM(G156:I156)) -> 110880 | K156: =IF(AND(C156=""),"",IF(AND(G156=""),"",C156-G156)) -> 0 | L156: =IF(AND(D156=""),"",IF(AND(H156=""),"",D156-H156)) -> 2016 | M156: =IF(AND(E156=""),"",IF(AND(I156=""),"",E156-I156)) -> 0 | N156: =IF(AND(F156=""),"",IF(AND(J156=""),"",F156-J156)) -> 2016 | O156: =IF(AND(C156=""),"",N156-P156) -> 2016 | P156: =IF(AND($Y$151=""),"",IF(AND(N156=""),"",ROUND(N156*AA$149%,0))) -> 0 | Q156: =IF(AND($Y$151=""),"",IF(AND(C156=""),"",IF(AND(O156=""),"",SUM(O156,P156)))) -> 2016 | R156: =IF(AND(N156=""),"",IF(AND(Q156=""),"",N156-Q156)) -> 0
A157: 2 | B157: =IFERROR(DATE(YEAR(B156),MONTH(B156)+1,DAY(B156)),"") -> 2025-08-01 | C157: =IF(AND($Y$151=""),"",C156) -> 67200 | D157: =IF(AND(C157=""),"",IF(AND($Y$151=""),"",ROUND(C157*Master!C$5%,0))) -> 38976 | E157: =IF(AND(C157=""),"",IF(AND($Y$151=""),"",ROUND(C157*Master!H$5%,0))) -> 6720 | F157: =IF(AND(C157=""),"",SUM(C157:E157)) -> 112896 | G157: =IF(AND($Y$151=""),"",G156) -> 67200 | H157: =IF(AND(G157=""),"",IF(AND($Y$151=""),"",ROUND(G157*Master!C$4%,0))) -> 36960 | I157: =IF(AND(G157=""),"",IF(AND($Y$151=""),"",ROUND(G157*Master!H$4%,0))) -> 6720 | J157: 110880 | K157: 0 | L157: 2016 | M157: 0 | N157: 2016 | O157: =IF(AND(C157=""),"",N157-P157) -> 2016 | P157: =IF(AND($Y$151=""),"",IF(AND(N157=""),"",ROUND(N157*AA$149%,0))) -> 0 | Q157: =IF(AND($Y$151=""),"",IF(AND(C157=""),"",IF(AND(O157=""),"",SUM(O157,P157)))) -> 2016 | R157: =IF(AND(N157=""),"",IF(AND(Q157=""),"",N157-Q157)) -> 0
A158: 3 | B158: =IFERROR(DATE(YEAR(B157),MONTH(B157)+1,DAY(B157)),"") -> 2025-09-01 | C158: =IF(AND($Y$151=""),"",C157) -> 67200 | D158: =IF(AND(C158=""),"",IF(AND($Y$151=""),"",ROUND(C158*Master!C$5%,0))) -> 38976 | E158: =IF(AND(C158=""),"",IF(AND($Y$151=""),"",ROUND(C158*Master!H$5%,0))) -> 6720 | F158: =IF(AND(C158=""),"",SUM(C158:E158)) -> 112896 | G158: =IF(AND($Y$151=""),"",G157) -> 67200 | H158: =IF(AND(G158=""),"",IF(AND($Y$151=""),"",ROUND(G158*Master!C$4%,0))) -> 36960 | I158: =IF(AND(G158=""),"",IF(AND($Y$151=""),"",ROUND(G158*Master!H$4%,0))) -> 6720 | J158: =IF(AND(C158=""),"",SUM(G158:I158)) -> 110880 | K158: 0 | L158: 2016 | M158: =IF(AND(E158=""),"",IF(AND(I158=""),"",E158-I158)) -> 0 | N158: =IF(AND(F158=""),"",IF(AND(J158=""),"",F158-J158)) -> 2016 | O158: 2016 | P158: 0 | Q158: =IF(AND($Y$151=""),"",IF(AND(C158=""),"",IF(AND(O158=""),"",SUM(O158,P158)))) -> 2016 | R158: 0
A160: TOTAL | C160: =IF(AND($Y$151=""),"",SUM(C156:C159)) -> 201600 | D160: =IF(AND($Y$151=""),"",SUM(D156:D159)) -> 116928 | E160: 20160 | F160: 338688 | G160: 201600 | H160: 110880 | I160: 20160 | J160: 332640 | K160: 0 | L160: 6048 | M160: 0 | N160: 6048 | O160: 6048 | P160: 0 | Q160: 6048 | R160: 0
E162: Name of Employee :- | J162: =IF(ISNA(VLOOKUP($Y$164,Master!A$8:N$127,2,FALSE)),"",VLOOKUP($Y$164,Master!A$8:AH$127,2,FALSE)) -> BAHADURRAM | O162: POST:- | P162: =IF(ISNA(VLOOKUP($Y$164,Master!A$8:N$127,3,FALSE)),"",VLOOKUP($Y$164,Master!A$8:AH$127,3,FALSE)) -> UDC
A164: 1 | B164: =IFERROR(IF(ISNA(VLOOKUP(Y164,Master!A$8:N$127,8,FALSE)),"",VLOOKUP($Y164,Master!A$8:AH$127,8,FALSE)),"") -> 2025-07-01 | C164: =IFERROR(IF(ISNA(VLOOKUP($Y$164,Master!A$8:N$127,5,FALSE)),"",VLOOKUP($Y$164,Master!A$8:AH$127,5,FALSE)),"") -> 38000 | D164: =IF(AND(C164=""),"",IF(AND($Y$164=""),"",ROUND(C164*Master!C$5%,0))) -> 22040 | E164: =IF(AND(C164=""),"",IF(AND($Y$164=""),"",ROUND(C164*Master!H$5%,0))) -> 3800 | F164: =IF(AND(C164=""),"",SUM(C164:E164)) -> 63840 | G164: =IFERROR(IF(ISNA(VLOOKUP($Y$164,Master!A$8:N$127,5,FALSE)),"",VLOOKUP($Y$164,Master!A$8:AH$127,5,FALSE)),"") -> 38000 | H164: =IF(AND(G164=""),"",IF(AND($Y$164=""),"",ROUND(G164*Master!C$4%,0))) -> 20900 | I164: =IF(AND(G164=""),"",IF(AND($Y$164=""),"",ROUND(G164*Master!H$4%,0))) -> 3800 | J164: =IF(AND(C164=""),"",SUM(G164:I164)) -> 62700 | K164: =IF(AND(C164=""),"",IF(AND(G164=""),"",C164-G164)) -> 0 | L164: =IF(AND(D164=""),"",IF(AND(H164=""),"",D164-H164)) -> 1140 | M164: =IF(AND(E164=""),"",IF(AND(I164=""),"",E164-I164)) -> 0 | N164: =IF(AND(F164=""),"",IF(AND(J164=""),"",F164-J164)) -> 1140 | O164: =IF(AND(C164=""),"",N164-P164) -> 1140 | P164: =IF(AND($Y$164=""),"",IF(AND(N164=""),"",ROUND(N164*$X$165%,0))) -> 0 | Q164: =IF(AND($Y$164=""),"",IF(AND(C164=""),"",IF(AND(O164=""),"",SUM(O164,P164)))) -> 1140 | R164: =IF(AND(N164=""),"",IF(AND(Q164=""),"",N164-Q164)) -> 0 | X164: Sr. No. :- | Y164: =IF(AND(Master!B21="",Master!E21=""),"",14) -> 14
A165: 2 | B165: =IFERROR(DATE(YEAR(B164),MONTH(B164)+1,DAY(B164)),"") -> 2025-08-01 | C165: =IF(AND($Y$164=""),"",C164) -> 38000 | D165: =IF(AND(C165=""),"",IF(AND($Y$164=""),"",ROUND(C165*Master!C$5%,0))) -> 22040 | E165: =IF(AND(C165=""),"",IF(AND($Y$164=""),"",ROUND(C165*Master!H$5%,0))) -> 3800 | F165: 63840 | G165: =IF(AND($Y$164=""),"",G164) -> 38000 | H165: =IF(AND(G165=""),"",IF(AND($Y$164=""),"",ROUND(G165*Master!C$4%,0))) -> 20900 | I165: =IF(AND(G165=""),"",IF(AND($Y$164=""),"",ROUND(G165*Master!H$4%,0))) -> 3800 | J165: 62700 | K165: =IF(AND(C165=""),"",IF(AND(G165=""),"",C165-G165)) -> 0 | L165: =IF(AND(D165=""),"",IF(AND(H165=""),"",D165-H165)) -> 1140 | M165: 0 | N165: 1140 | O165: =IF(AND(C165=""),"",N165-P165) -> 1140 | P165: =IF(AND($Y$164=""),"",IF(AND(N165=""),"",ROUND(N165*$X$165%,0))) -> 0 | Q165: =IF(AND($Y$164=""),"",IF(AND(C165=""),"",IF(AND(O165=""),"",SUM(O165,P165)))) -> 1140 | R165: =IF(AND(N165=""),"",IF(AND(Q165=""),"",N165-Q165)) -> 0 | X165: =IF(ISNA(VLOOKUP($Y$164,Master!A$8:N$127,7,FALSE)),"",VLOOKUP($Y$164,Master!A$8:AH$127,7,FALSE)) -> 0
A166: 3 | B166: =IFERROR(DATE(YEAR(B165),MONTH(B165)+1,DAY(B165)),"") -> 2025-09-01 | C166: =IF(AND($Y$164=""),"",C165) -> 38000 | D166: =IF(AND(C166=""),"",IF(AND($Y$164=""),"",ROUND(C166*Master!C$5%,0))) -> 22040 | E166: =IF(AND(C166=""),"",IF(AND($Y$164=""),"",ROUND(C166*Master!H$5%,0))) -> 3800 | F166: 63840 | G166: =IF(AND($Y$164=""),"",G165) -> 38000 | H166: =IF(AND(G166=""),"",IF(AND($Y$164=""),"",ROUND(G166*Master!C$4%,0))) -> 20900 | I166: =IF(AND(G166=""),"",IF(AND($Y$164=""),"",ROUND(G166*Master!H$4%,0))) -> 3800 | J166: 62700 | K166: =IF(AND(C166=""),"",IF(AND(G166=""),"",C166-G166)) -> 0 | L166: 1140 | M166: 0 | N166: 1140 | O166: 1140 | P166: 0 | Q166: =IF(AND($Y$164=""),"",IF(AND(C166=""),"",IF(AND(O166=""),"",SUM(O166,P166)))) -> 1140 | R166: 0
A168: TOTAL | C168: =IF(AND($Y$164=""),"",SUM(C164:C167)) -> 114000 | D168: =IF(AND($Y$164=""),"",SUM(D164:D167)) -> 66120 | E168: 11400 | F168: 191520 | G168: 114000 | H168: 62700 | I168: 11400 | J168: 188100 | K168: 0 | L168: 3420 | M168: 0 | N168: 3420 | O168: 3420 | P168: 0 | Q168: 3420 | R168: 0
E170: Name of Employee :- | J170: =IF(ISNA(VLOOKUP($Y$172,Master!A$8:N$127,2,FALSE)),"",VLOOKUP($Y$172,Master!A$8:AH$127,2,FALSE)) -> HEMANT | O170: POST:- | P170: =IF(ISNA(VLOOKUP($Y$172,Master!A$8:N$127,3,FALSE)),"",VLOOKUP($Y$172,Master!A$8:AH$127,3,FALSE)) -> LDC
A172: 1 | B172: =IFERROR(IF(ISNA(VLOOKUP(Y172,Master!A$8:N$127,8,FALSE)),"",VLOOKUP($Y172,Master!A$8:AH$127,8,FALSE)),"") -> 2025-07-01 | C172: =IFERROR(IF(ISNA(VLOOKUP($Y$172,Master!A$8:N$127,5,FALSE)),"",VLOOKUP($Y$172,Master!A$8:AH$127,5,FALSE)),"") -> 36900 | D172: =IF(AND(C172=""),"",IF(AND($Y$172=""),"",ROUND(C172*Master!C$5%,0))) -> 21402 | E172: =IF(AND(C172=""),"",IF(AND($Y$172=""),"",ROUND(C172*Master!H$5%,0))) -> 3690 | F172: =IF(AND(C172=""),"",SUM(C172:E172)) -> 61992 | G172: =IFERROR(IF(ISNA(VLOOKUP($Y$172,Master!A$8:N$127,5,FALSE)),"",VLOOKUP($Y$172,Master!A$8:AH$127,5,FALSE)),"") -> 36900 | H172: =IF(AND(G172=""),"",IF(AND($Y$172=""),"",ROUND(G172*Master!C$4%,0))) -> 20295 | I172: =IF(AND(G172=""),"",IF(AND($Y$172=""),"",ROUND(G172*Master!H$4%,0))) -> 3690 | J172: =IF(AND(C172=""),"",SUM(G172:I172)) -> 60885 | K172: =IF(AND(C172=""),"",IF(AND(G172=""),"",C172-G172)) -> 0 | L172: =IF(AND(D172=""),"",IF(AND(H172=""),"",D172-H172)) -> 1107 | M172: =IF(AND(E172=""),"",IF(AND(I172=""),"",E172-I172)) -> 0 | N172: =IF(AND(F172=""),"",IF(AND(J172=""),"",F172-J172)) -> 1107 | O172: =IF(AND(C172=""),"",N172-P172) -> 1107 | P172: =IF(AND($Y$172=""),"",IF(AND(N172=""),"",ROUND(N172*$X$173%,0))) -> 0 | Q172: =IF(AND($Y$172=""),"",IF(AND(C172=""),"",IF(AND(O172=""),"",SUM(O172,P172)))) -> 1107 | R172: =IF(AND(N172=""),"",IF(AND(Q172=""),"",N172-Q172)) -> 0 | X172: Sr. No. :- | Y172: =IF(AND(Master!B22="",Master!E22=""),"",15) -> 15
A173: 2 | B173: =IFERROR(DATE(YEAR(B172),MONTH(B172)+1,DAY(B172)),"") -> 2025-08-01 | C173: =IF(AND($Y$172=""),"",C172) -> 36900 | D173: =IF(AND(C173=""),"",IF(AND($Y$172=""),"",ROUND(C173*Master!C$5%,0))) -> 21402 | E173: =IF(AND(C173=""),"",IF(AND($Y$172=""),"",ROUND(C173*Master!H$5%,0))) -> 3690 | F173: 61992 | G173: =IF(AND($Y$172=""),"",G172) -> 36900 | H173: =IF(AND(G173=""),"",IF(AND($Y$172=""),"",ROUND(G173*Master!C$4%,0))) -> 20295 | I173: =IF(AND(G173=""),"",IF(AND($Y$172=""),"",ROUND(G173*Master!H$4%,0))) -> 3690 | J173: 60885 | K173: 0 | L173: 1107 | M173: 0 | N173: 1107 | O173: =IF(AND(C173=""),"",N173-P173) -> 1107 | P173: =IF(AND($Y$172=""),"",IF(AND(N173=""),"",ROUND(N173*$X$173%,0))) -> 0 | Q173: =IF(AND($Y$172=""),"",IF(AND(C173=""),"",IF(AND(O173=""),"",SUM(O173,P173)))) -> 1107 | R173: =IF(AND(N173=""),"",IF(AND(Q173=""),"",N173-Q173)) -> 0 | X173: =IF(ISNA(VLOOKUP($Y$172,Master!A$8:N$127,7,FALSE)),"",VLOOKUP($Y$172,Master!A$8:AH$127,7,FALSE)) -> 0
A174: 3 | B174: =IFERROR(DATE(YEAR(B173),MONTH(B173)+1,DAY(B173)),"") -> 2025-09-01 | C174: =IF(AND($Y$172=""),"",C173) -> 36900 | D174: =IF(AND(C174=""),"",IF(AND($Y$172=""),"",ROUND(C174*Master!C$5%,0))) -> 21402 | E174: =IF(AND(C174=""),"",IF(AND($Y$172=""),"",ROUND(C174*Master!H$5%,0))) -> 3690 | F174: 61992 | G174: =IF(AND($Y$172=""),"",G173) -> 36900 | H174: =IF(AND(G174=""),"",IF(AND($Y$172=""),"",ROUND(G174*Master!C$4%,0))) -> 20295 | I174: =IF(AND(G174=""),"",IF(AND($Y$172=""),"",ROUND(G174*Master!H$4%,0))) -> 3690 | J174: 60885 | K174: 0 | L174: 1107 | M174: 0 | N174: 1107 | O174: 1107 | P174: 0 | Q174: =IF(AND($Y$172=""),"",IF(AND(C174=""),"",IF(AND(O174=""),"",SUM(O174,P174)))) -> 1107 | R174: 0
A176: TOTAL | C176: =IF(AND($Y$172=""),"",SUM(C172:C175)) -> 110700 | D176: =IF(AND($Y$172=""),"",SUM(D172:D175)) -> 64206 | E176: 11070 | F176: 185976 | G176: 110700 | H176: 60885 | I176: 11070 | J176: 182655 | K176: 0 | L176: 3321 | M176: 0 | N176: 3321 | O176: 3321 | P176: 0 | Q176: 3321 | R176: 0
O178: SEAL AND SIGN OF DDO
B179: S.R. | I179: Date :
B180: For Copying And Necessary Action
A181: 1 | B181: Treasury Officer / Deputy treasury Officer
A182: 2 | B182: Related Employee Sh./Smt./Mis.
A183: 3 | B183: File Register
O184: SEAL AND SIGN OF DDO
A186: =A149 -> DA (55% to 58%) Drawn Statement | W186: =IF(ISNA(VLOOKUP($Y$3,Master!A$8:N$127,4,FALSE)),"",VLOOKUP($Y$3,Master!A$8:AH$127,4,FALSE)) -> 3 | X186: =IF(ISNA(VLOOKUP($Y$3,Master!A$8:N$127,6,FALSE)),"",VLOOKUP($Y$3,Master!A$8:AH$127,6,FALSE)) -> GPF-2004 | Y186: GPF-2004 | Z186: GPF | AA186: =IF(ISNA(VLOOKUP($Y$188,Master!A$8:N$127,7,FALSE)),"",VLOOKUP($Y$188,Master!A$8:AH$127,7,FALSE)) -> 
A187: =IF(AND(Master!C173=""),"",CONCATENATE("Office Of ",Master!C173)) ->  | X187: =IF(ISNA(VLOOKUP($Y$3,Master!A$8:N$127,8,FALSE)),"",VLOOKUP($Y$3,Master!A$8:AH$127,8,FALSE)) -> 45839 | Y187: YES
E188: Name of Employee :- | J188: =IF(ISNA(VLOOKUP($Y$188,Master!A$8:N$127,2,FALSE)),"",VLOOKUP($Y$188,Master!A$8:AH$127,2,FALSE)) ->  | O188: POST:- | P188: =IF(ISNA(VLOOKUP($Y$188,Master!A$8:N$127,3,FALSE)),"",VLOOKUP($Y$188,Master!A$8:AH$127,3,FALSE)) ->  | X188: Sr. No. :- | Y188: =IF(AND(Master!B23="",Master!E23=""),"",16) -> 
A190: Serial No. | B190: Month & Year | C190: Pay Due | G190: Pay Drawn | K190: Pay Difference | O190: Deducation | R190: To be paid in Cash Col. 14 form 18 | S190: Treasury Bill@ Voucher No.& Date
C191: Basic | D191: Dearness Allowance | E191: H.R.A. | F191: Total Col. 3 to 5 | G191: Basic | H191: Dearness Allowance | I191: H.R.A. | J191: Total Col. 7 to 9 | K191: Basic Pay | L191: Dearness Allowance | M191: H.R.A. | N191: Total Col. 11 to 13 | O191: GPF / GPF-2004 | P191: Income Tax / TDS | Q191: Total of Dedu ction
A192: 1 | B192: 2 | C192: 3 | D192: 4 | E192: 5 | F192: 6 | G192: 7 | H192: 8 | I192: 9 | J192: 10 | K192: 11 | L192: 12 | M192: 13 | N192: 14 | O192: 15 | P192: 17 | Q192: 18 | R192: 19 | S192: 20
A193: 1 | B193: =IFERROR(IF(ISNA(VLOOKUP(Y188,Master!A$8:N$127,8,FALSE)),"",VLOOKUP($Y188,Master!A$8:AH$127,8,FALSE)),"") ->  | C193: =IFERROR(IF(ISNA(VLOOKUP(Y188,Master!A$8:N$127,5,FALSE)),"",VLOOKUP($Y$188,Master!A$8:AH$127,5,FALSE)),"") ->  | D193: =IF(AND(C193=""),"",IF(AND($Y$188=""),"",ROUND(C193*Master!C$5%,0))) ->  | E193: =IF(AND(C193=""),"",IF(AND($Y$188=""),"",ROUND(C193*Master!H$5%,0))) ->  | F193: =IF(AND(C193=""),"",SUM(C193:E193)) ->  | G193: =IFERROR(IF(ISNA(VLOOKUP($Y$188,Master!A$8:N$127,5,FALSE)),"",VLOOKUP($Y$188,Master!A$8:AH$127,5,FALSE)),"") ->  | H193: =IF(AND(G193=""),"",IF(AND($Y$188=""),"",ROUND(G193*Master!C$4%,0))) ->  | I193: =IF(AND(G193=""),"",IF(AND($Y$188=""),"",ROUND(G193*Master!H$4%,0))) ->  | J193: =IF(AND(C193=""),"",SUM(G193:I193)) ->  | K193: =IF(AND(C193=""),"",IF(AND(G193=""),"",C193-G193)) ->  | L193: =IF(AND(D193=""),"",IF(AND(H193=""),"",D193-H193)) ->  | M193: =IF(AND(E193=""),"",IF(AND(I193=""),"",E193-I193)) ->  | N193: =IF(AND(F193=""),"",IF(AND(J193=""),"",F193-J193)) ->  | O193: =IF(AND(C193=""),"",N193-P193) ->  | P193: =IF(AND($Y$188=""),"",IF(AND(N193=""),"",ROUND(N193*AA$186%,0))) ->  | Q193: =IF(AND($Y$188=""),"",IF(AND(C193=""),"",IF(AND(O193=""),"",SUM(O193,P193)))) ->  | R193: =IF(AND(N193=""),"",IF(AND(Q193=""),"",N193-Q193)) -> 
A194: 2 | B194: =IFERROR(DATE(YEAR(B193),MONTH(B193)+1,DAY(B193)),"") ->  | C194: =IF(AND($Y$188=""),"",C193) ->  | D194: =IF(AND(C194=""),"",IF(AND($Y$188=""),"",ROUND(C194*Master!C$5%,0))) ->  | E194: =IF(AND(C194=""),"",IF(AND($Y$188=""),"",ROUND(C194*Master!H$5%,0))) ->  | F194: =IF(AND(C194=""),"",SUM(C194:E194)) ->  | G194: =IF(AND($Y$188=""),"",G193) ->  | H194: =IF(AND(G194=""),"",IF(AND($Y$188=""),"",ROUND(G194*Master!C$4%,0))) ->  | I194: =IF(AND(G194=""),"",IF(AND($Y$188=""),"",ROUND(G194*Master!H$4%,0))) ->  | O194: =IF(AND(C194=""),"",N194-P194) ->  | P194: =IF(AND($Y$188=""),"",IF(AND(N194=""),"",ROUND(N194*AA$186%,0))) ->  | Q194: =IF(AND($Y$188=""),"",IF(AND(C194=""),"",IF(AND(O194=""),"",SUM(O194,P194)))) ->  | R194: =IF(AND(N194=""),"",IF(AND(Q194=""),"",N194-Q194)) -> 
A195: 3 | B195: =IFERROR(DATE(YEAR(B194),MONTH(B194)+1,DAY(B194)),"") ->  | C195: =IF(AND($Y$188=""),"",C194) ->  | D195: =IF(AND(C195=""),"",IF(AND($Y$188=""),"",ROUND(C195*Master!C$5%,0))) ->  | E195: =IF(AND(C195=""),"",IF(AND($Y$188=""),"",ROUND(C195*Master!H$5%,0))) ->  | F195: =IF(AND(C195=""),"",SUM(C195:E195)) ->  | G195: =IF(AND($Y$188=""),"",G194) ->  | H195: =IF(AND(G195=""),"",IF(AND($Y$188=""),"",ROUND(G195*Master!C$4%,0))) ->  | I195: =IF(AND(G195=""),"",IF(AND($Y$188=""),"",ROUND(G195*Master!H$4%,0))) ->  | J195: =IF(AND(C195=""),"",SUM(G195:I195)) ->  | M195: =IF(AND(E195=""),"",IF(AND(I195=""),"",E195-I195)) ->  | N195: =IF(AND(F195=""),"",IF(AND(J195=""),"",F195-J195)) ->  | Q195: =IF(AND($Y$188=""),"",IF(AND(C195=""),"",IF(AND(O195=""),"",SUM(O195,P195)))) -> 
A197: TOTAL | C197: =IF(AND($Y$188=""),"",SUM(C193:C196)) ->  | D197: =IF(AND($Y$188=""),"",SUM(D193:D196)) -> 
E199: Name of Employee :- | J199: =IF(ISNA(VLOOKUP($Y$201,Master!A$8:N$127,2,FALSE)),"",VLOOKUP($Y$201,Master!A$8:AH$127,2,FALSE)) ->  | O199: POST:- | P199: =IF(ISNA(VLOOKUP($Y$201,Master!A$8:N$127,3,FALSE)),"",VLOOKUP($Y$201,Master!A$8:AH$127,3,FALSE)) -> 
A201: 1 | B201: =IFERROR(IF(ISNA(VLOOKUP(Y201,Master!A$8:N$127,8,FALSE)),"",VLOOKUP($Y201,Master!A$8:AH$127,8,FALSE)),"") ->  | C201: =IFERROR(IF(ISNA(VLOOKUP($Y$201,Master!A$8:N$127,5,FALSE)),"",VLOOKUP($Y$201,Master!A$8:AH$127,5,FALSE)),"") ->  | D201: =IF(AND(C201=""),"",IF(AND($Y$201=""),"",ROUND(C201*Master!C$5%,0))) ->  | E201: =IF(AND(C201=""),"",IF(AND($Y$201=""),"",ROUND(C201*Master!H$5%,0))) ->  | F201: =IF(AND(C201=""),"",SUM(C201:E201)) ->  | G201: =IFERROR(IF(ISNA(VLOOKUP($Y$201,Master!A$8:N$127,5,FALSE)),"",VLOOKUP($Y$201,Master!A$8:AH$127,5,FALSE)),"") ->  | H201: =IF(AND(G201=""),"",IF(AND($Y$201=""),"",ROUND(G201*Master!C$4%,0))) ->  | I201: =IF(AND(G201=""),"",IF(AND($Y$201=""),"",ROUND(G201*Master!H$4%,0))) ->  | J201: =IF(AND(C201=""),"",SUM(G201:I201)) ->  | K201: =IF(AND(C201=""),"",IF(AND(G201=""),"",C201-G201)) ->  | L201: =IF(AND(D201=""),"",IF(AND(H201=""),"",D201-H201)) ->  | M201: =IF(AND(E201=""),"",IF(AND(I201=""),"",E201-I201)) ->  | N201: =IF(AND(F201=""),"",IF(AND(J201=""),"",F201-J201)) ->  | O201: =IF(AND(C201=""),"",N201-P201) ->  | P201: =IF(AND($Y$201=""),"",IF(AND(N201=""),"",ROUND(N201*$X$202%,0))) ->  | Q201: =IF(AND($Y$201=""),"",IF(AND(C201=""),"",IF(AND(O201=""),"",SUM(O201,P201)))) ->  | R201: =IF(AND(N201=""),"",IF(AND(Q201=""),"",N201-Q201)) ->  | X201: Sr. No. :- | Y201: =IF(AND(Master!B24="",Master!E24=""),"",17) -> 
A202: 2 | B202: =IFERROR(DATE(YEAR(B201),MONTH(B201)+1,DAY(B201)),"") ->  | C202: =IF(AND($Y$201=""),"",C201) ->  | D202: =IF(AND(C202=""),"",IF(AND($Y$201=""),"",ROUND(C202*Master!C$5%,0))) ->  | E202: =IF(AND(C202=""),"",IF(AND($Y$201=""),"",ROUND(C202*Master!H$5%,0))) ->  | G202: =IF(AND($Y$201=""),"",G201) ->  | H202: =IF(AND(G202=""),"",IF(AND($Y$201=""),"",ROUND(G202*Master!C$4%,0))) ->  | I202: =IF(AND(G202=""),"",IF(AND($Y$201=""),"",ROUND(G202*Master!H$4%,0))) ->  | K202: =IF(AND(C202=""),"",IF(AND(G202=""),"",C202-G202)) ->  | L202: =IF(AND(D202=""),"",IF(AND(H202=""),"",D202-H202)) ->  | O202: =IF(AND(C202=""),"",N202-P202) ->  | P202: =IF(AND($Y$201=""),"",IF(AND(N202=""),"",ROUND(N202*$X$202%,0))) ->  | Q202: =IF(AND($Y$201=""),"",IF(AND(C202=""),"",IF(AND(O202=""),"",SUM(O202,P202)))) ->  | R202: =IF(AND(N202=""),"",IF(AND(Q202=""),"",N202-Q202)) ->  | X202: =IF(ISNA(VLOOKUP($Y$201,Master!A$8:N$127,7,FALSE)),"",VLOOKUP($Y$201,Master!A$8:AH$127,7,FALSE)) -> 
A203: 3 | B203: =IFERROR(DATE(YEAR(B202),MONTH(B202)+1,DAY(B202)),"") ->  | C203: =IF(AND($Y$201=""),"",C202) ->  | D203: =IF(AND(C203=""),"",IF(AND($Y$201=""),"",ROUND(C203*Master!C$5%,0))) ->  | E203: =IF(AND(C203=""),"",IF(AND($Y$201=""),"",ROUND(C203*Master!H$5%,0))) ->  | G203: =IF(AND($Y$201=""),"",G202) ->  | H203: =IF(AND(G203=""),"",IF(AND($Y$201=""),"",ROUND(G203*Master!C$4%,0))) ->  | I203: =IF(AND(G203=""),"",IF(AND($Y$201=""),"",ROUND(G203*Master!H$4%,0))) ->  | K203: =IF(AND(C203=""),"",IF(AND(G203=""),"",C203-G203)) ->  | Q203: =IF(AND($Y$201=""),"",IF(AND(C203=""),"",IF(AND(O203=""),"",SUM(O203,P203)))) -> 
A205: TOTAL | C205: =IF(AND($Y$201=""),"",SUM(C201:C204)) ->  | D205: =IF(AND($Y$201=""),"",SUM(D201:D204)) -> 
E207: Name of Employee :- | J207: =IF(ISNA(VLOOKUP($Y$209,Master!A$8:N$127,2,FALSE)),"",VLOOKUP($Y$209,Master!A$8:AH$127,2,FALSE)) ->  | O207: POST:- | P207: =IF(ISNA(VLOOKUP($Y$209,Master!A$8:N$127,3,FALSE)),"",VLOOKUP($Y$209,Master!A$8:AH$127,3,FALSE)) -> 
A209: 1 | B209: =IFERROR(IF(ISNA(VLOOKUP(Y209,Master!A$8:N$127,8,FALSE)),"",VLOOKUP($Y209,Master!A$8:AH$127,8,FALSE)),"") ->  | C209: =IFERROR(IF(ISNA(VLOOKUP($Y$209,Master!A$8:N$127,5,FALSE)),"",VLOOKUP($Y$209,Master!A$8:AH$127,5,FALSE)),"") ->  | D209: =IF(AND(C209=""),"",IF(AND($Y$209=""),"",ROUND(C209*Master!C$5%,0))) ->  | E209: =IF(AND(C209=""),"",IF(AND($Y$209=""),"",ROUND(C209*Master!H$5%,0))) ->  | F209: =IF(AND(C209=""),"",SUM(C209:E209)) ->  | G209: =IFERROR(IF(ISNA(VLOOKUP($Y$209,Master!A$8:N$127,5,FALSE)),"",VLOOKUP($Y$209,Master!A$8:AH$127,5,FALSE)),"") ->  | H209: =IF(AND(G209=""),"",IF(AND($Y$209=""),"",ROUND(G209*Master!C$4%,0))) ->  | I209: =IF(AND(G209=""),"",IF(AND($Y$209=""),"",ROUND(G209*Master!H$4%,0))) ->  | J209: =IF(AND(C209=""),"",SUM(G209:I209)) ->  | K209: =IF(AND(C209=""),"",IF(AND(G209=""),"",C209-G209)) ->  | L209: =IF(AND(D209=""),"",IF(AND(H209=""),"",D209-H209)) ->  | M209: =IF(AND(E209=""),"",IF(AND(I209=""),"",E209-I209)) ->  | N209: =IF(AND(F209=""),"",IF(AND(J209=""),"",F209-J209)) ->  | O209: =IF(AND(C209=""),"",N209-P209) ->  | P209: =IF(AND($Y$209=""),"",IF(AND(N209=""),"",ROUND(N209*$X$210%,0))) ->  | Q209: =IF(AND($Y$209=""),"",IF(AND(C209=""),"",IF(AND(O209=""),"",SUM(O209,P209)))) ->  | R209: =IF(AND(N209=""),"",IF(AND(Q209=""),"",N209-Q209)) ->  | X209: Sr. No. :- | Y209: =IF(AND(Master!B25="",Master!E25=""),"",18) -> 
A210: 2 | B210: =IFERROR(DATE(YEAR(B209),MONTH(B209)+1,DAY(B209)),"") ->  | C210: =IF(AND($Y$209=""),"",C209) ->  | D210: =IF(AND(C210=""),"",IF(AND($Y$209=""),"",ROUND(C210*Master!C$5%,0))) ->  | E210: =IF(AND(C210=""),"",IF(AND($Y$209=""),"",ROUND(C210*Master!H$5%,0))) ->  | G210: =IF(AND($Y$209=""),"",G209) ->  | H210: =IF(AND(G210=""),"",IF(AND($Y$209=""),"",ROUND(G210*Master!C$4%,0))) ->  | I210: =IF(AND(G210=""),"",IF(AND($Y$209=""),"",ROUND(G210*Master!H$4%,0))) ->  | O210: =IF(AND(C210=""),"",N210-P210) ->  | P210: =IF(AND($Y$209=""),"",IF(AND(N210=""),"",ROUND(N210*$X$210%,0))) ->  | Q210: =IF(AND($Y$209=""),"",IF(AND(C210=""),"",IF(AND(O210=""),"",SUM(O210,P210)))) ->  | R210: =IF(AND(N210=""),"",IF(AND(Q210=""),"",N210-Q210)) ->  | X210: =IF(ISNA(VLOOKUP($Y$209,Master!A$8:N$127,7,FALSE)),"",VLOOKUP($Y$209,Master!A$8:AH$127,7,FALSE)) -> 
A211: 3 | B211: =IFERROR(DATE(YEAR(B210),MONTH(B210)+1,DAY(B210)),"") ->  | C211: =IF(AND($Y$209=""),"",C210) ->  | D211: =IF(AND(C211=""),"",IF(AND($Y$209=""),"",ROUND(C211*Master!C$5%,0))) ->  | E211: =IF(AND(C211=""),"",IF(AND($Y$209=""),"",ROUND(C211*Master!H$5%,0))) ->  | G211: =IF(AND($Y$209=""),"",G210) ->  | H211: =IF(AND(G211=""),"",IF(AND($Y$209=""),"",ROUND(G211*Master!C$4%,0))) ->  | I211: =IF(AND(G211=""),"",IF(AND($Y$209=""),"",ROUND(G211*Master!H$4%,0))) ->  | Q211: =IF(AND($Y$209=""),"",IF(AND(C211=""),"",IF(AND(O211=""),"",SUM(O211,P211)))) -> 
A213: TOTAL | C213: =IF(AND($Y$209=""),"",SUM(C209:C212)) ->  | D213: =IF(AND($Y$209=""),"",SUM(D209:D212)) ->  | R213: =IF(AND($Y$209=""),"",SUM(R209:R212)) -> 
O215: SEAL AND SIGN OF DDO
B216: S.R. | I216: Date :
B217: For Copying And Necessary Action
A218: 1 | B218: Treasury Officer / Deputy treasury Officer
A219: 2 | B219: Related Employee Sh./Smt./Mis.
A220: 3 | B220: File Register
O221: SEAL AND SIGN OF DDO
A223: =A186 -> DA (55% to 58%) Drawn Statement | W223: =IF(ISNA(VLOOKUP($Y$3,Master!A$8:N$127,4,FALSE)),"",VLOOKUP($Y$3,Master!A$8:AH$127,4,FALSE)) -> 3 | X223: =IF(ISNA(VLOOKUP($Y$3,Master!A$8:N$127,6,FALSE)),"",VLOOKUP($Y$3,Master!A$8:AH$127,6,FALSE)) -> GPF-2004 | Y223: GPF-2004 | Z223: GPF | AA223: =IF(ISNA(VLOOKUP($Y$225,Master!A$8:N$127,7,FALSE)),"",VLOOKUP($Y$225,Master!A$8:AH$127,7,FALSE)) -> 
A224: =IF(AND(Master!C207=""),"",CONCATENATE("Office Of ",Master!C207)) ->  | X224: =IF(ISNA(VLOOKUP($Y$3,Master!A$8:N$127,8,FALSE)),"",VLOOKUP($Y$3,Master!A$8:AH$127,8,FALSE)) -> 45839 | Y224: YES
E225: Name of Employee :- | J225: =IF(ISNA(VLOOKUP($Y$225,Master!A$8:N$127,2,FALSE)),"",VLOOKUP($Y$225,Master!A$8:AH$127,2,FALSE)) ->  | O225: POST:- | P225: =IF(ISNA(VLOOKUP($Y$225,Master!A$8:N$127,3,FALSE)),"",VLOOKUP($Y$225,Master!A$8:AH$127,3,FALSE)) ->  | X225: Sr. No. :- | Y225: =IF(AND(Master!B26="",Master!E26=""),"",19) -> 
A227: Serial No. | B227: Month & Year | C227: Pay Due | G227: Pay Drawn | K227: Pay Difference | O227: Deducation | R227: To be paid in Cash Col. 14 form 18 | S227: Treasury Bill@ Voucher No.& Date
C228: Basic | D228: Dearness Allowance | E228: H.R.A. | F228: Total Col. 3 to 5 | G228: Basic | H228: Dearness Allowance | I228: H.R.A. | J228: Total Col. 7 to 9 | K228: Basic Pay | L228: Dearness Allowance | M228: H.R.A. | N228: Total Col. 11 to 13 | O228: GPF / GPF-2004 | P228: Income Tax / TDS | Q228: Total of Dedu ction
A229: 1 | B229: 2 | C229: 3 | D229: 4 | E229: 5 | F229: 6 | G229: 7 | H229: 8 | I229: 9 | J229: 10 | K229: 11 | L229: 12 | M229: 13 | N229: 14 | O229: 15 | P229: 17 | Q229: 18 | R229: 19 | S229: 20
A230: 1 | B230: =IFERROR(IF(ISNA(VLOOKUP(Y225,Master!A$8:N$127,8,FALSE)),"",VLOOKUP($Y225,Master!A$8:AH$127,8,FALSE)),"") ->  | C230: =IF(ISNA(VLOOKUP(Y225,Master!A$8:N$127,5,FALSE)),"",VLOOKUP($Y$225,Master!A$8:AH$127,5,FALSE)) ->  | D230: =IF(AND(C230=""),"",IF(AND($Y$225=""),"",ROUND(C230*Master!C$5%,0))) ->  | E230: =IF(AND(C230=""),"",IF(AND($Y$225=""),"",ROUND(C230*Master!H$5%,0))) ->  | F230: =IF(AND(C230=""),"",SUM(C230:E230)) ->  | G230: =IF(ISNA(VLOOKUP($Y$225,Master!A$8:N$127,5,FALSE)),"",VLOOKUP($Y$225,Master!A$8:AH$127,5,FALSE)) ->  | H230: =IF(AND(G230=""),"",IF(AND($Y$225=""),"",ROUND(G230*Master!C$4%,0))) ->  | I230: =IF(AND(G230=""),"",IF(AND($Y$225=""),"",ROUND(G230*Master!H$4%,0))) ->  | J230: =IF(AND(C230=""),"",SUM(G230:I230)) ->  | K230: =IF(AND(C230=""),"",IF(AND(G230=""),"",C230-G230)) ->  | L230: =IF(AND(D230=""),"",IF(AND(H230=""),"",D230-H230)) ->  | M230: =IF(AND(E230=""),"",IF(AND(I230=""),"",E230-I230)) ->  | N230: =IF(AND(F230=""),"",IF(AND(J230=""),"",F230-J230)) ->  | O230: =IF(AND(C230=""),"",N230-P230) ->  | P230: =IF(AND($Y$225=""),"",IF(AND(N230=""),"",ROUND(N230*AA$223%,0))) ->  | Q230: =IF(AND($Y$225=""),"",IF(AND(C230=""),"",IF(AND(O230=""),"",SUM(O230,P230)))) ->  | R230: =IF(AND(N230=""),"",IF(AND(Q230=""),"",N230-Q230)) -> 
A231: 2 | B231: =IFERROR(DATE(YEAR(B230),MONTH(B230)+1,DAY(B230)),"") ->  | C231: =IF(AND($Y$225=""),"",C230) ->  | D231: =IF(AND(C231=""),"",IF(AND($Y$225=""),"",ROUND(C231*Master!C$5%,0))) ->  | E231: =IF(AND(C231=""),"",IF(AND($Y$225=""),"",ROUND(C231*Master!H$5%,0))) ->  | F231: =IF(AND(C231=""),"",SUM(C231:E231)) ->  | G231: =IF(AND($Y$225=""),"",G230) ->  | H231: =IF(AND(G231=""),"",IF(AND($Y$225=""),"",ROUND(G231*Master!C$4%,0))) ->  | I231: =IF(AND(G231=""),"",IF(AND($Y$225=""),"",ROUND(G231*Master!H$4%,0))) ->  | O231: =IF(AND(C231=""),"",N231-P231) ->  | P231: =IF(AND($Y$225=""),"",IF(AND(N231=""),"",ROUND(N231*AA$223%,0))) ->  | Q231: =IF(AND($Y$225=""),"",IF(AND(C231=""),"",IF(AND(O231=""),"",SUM(O231,P231)))) ->  | R231: =IF(AND(N231=""),"",IF(AND(Q231=""),"",N231-Q231)) -> 
A232: 3 | B232: =IFERROR(DATE(YEAR(B231),MONTH(B231)+1,DAY(B231)),"") ->  | C232: =IF(AND($Y$225=""),"",C231) ->  | D232: =IF(AND(C232=""),"",IF(AND($Y$225=""),"",ROUND(C232*Master!C$5%,0))) ->  | E232: =IF(AND(C232=""),"",IF(AND($Y$225=""),"",ROUND(C232*Master!H$5%,0))) ->  | F232: =IF(AND(C232=""),"",SUM(C232:E232)) ->  | G232: =IF(AND($Y$225=""),"",G231) ->  | H232: =IF(AND(G232=""),"",IF(AND($Y$225=""),"",ROUND(G232*Master!C$4%,0))) ->  | I232: =IF(AND(G232=""),"",IF(AND($Y$225=""),"",ROUND(G232*Master!H$4%,0))) ->  | J232: =IF(AND(C232=""),"",SUM(G232:I232)) ->  | M232: =IF(AND(E232=""),"",IF(AND(I232=""),"",E232-I232)) ->  | N232: =IF(AND(F232=""),"",IF(AND(J232=""),"",F232-J232)) ->  | Q232: =IF(AND($Y$225=""),"",IF(AND(C232=""),"",IF(AND(O232=""),"",SUM(O232,P232)))) -> 
A234: TOTAL | C234: =IF(AND($Y$225=""),"",SUM(C230:C233)) ->  | D234: =IF(AND($Y$225=""),"",SUM(D230:D233)) -> 
E236: Name of Employee :- | J236: =IF(ISNA(VLOOKUP($Y$238,Master!A$8:N$127,2,FALSE)),"",VLOOKUP($Y$238,Master!A$8:AH$127,2,FALSE)) ->  | O236: POST:- | P236: =IF(ISNA(VLOOKUP($Y$238,Master!A$8:N$127,3,FALSE)),"",VLOOKUP($Y$238,Master!A$8:AH$127,3,FALSE)) -> 
A238: 1 | B238: =IFERROR(IF(ISNA(VLOOKUP(Y238,Master!A$8:N$127,8,FALSE)),"",VLOOKUP($Y238,Master!A$8:AH$127,8,FALSE)),"") ->  | C238: =IF(ISNA(VLOOKUP($Y$238,Master!A$8:N$127,5,FALSE)),"",VLOOKUP($Y$238,Master!A$8:AH$127,5,FALSE)) ->  | D238: =IF(AND(C238=""),"",IF(AND($Y$238=""),"",ROUND(C238*Master!C$5%,0))) ->  | E238: =IF(AND(C238=""),"",IF(AND($Y$238=""),"",ROUND(C238*Master!H$5%,0))) ->  | F238: =IF(AND(C238=""),"",SUM(C238:E238)) ->  | G238: =IF(ISNA(VLOOKUP($Y$238,Master!A$8:N$127,5,FALSE)),"",VLOOKUP($Y$238,Master!A$8:AH$127,5,FALSE)) ->  | H238: =IF(AND(G238=""),"",IF(AND($Y$238=""),"",ROUND(G238*Master!C$4%,0))) ->  | I238: =IF(AND(G238=""),"",IF(AND($Y$238=""),"",ROUND(G238*Master!H$4%,0))) ->  | J238: =IF(AND(C238=""),"",SUM(G238:I238)) ->  | K238: =IF(AND(C238=""),"",IF(AND(G238=""),"",C238-G238)) ->  | L238: =IF(AND(D238=""),"",IF(AND(H238=""),"",D238-H238)) ->  | M238: =IF(AND(E238=""),"",IF(AND(I238=""),"",E238-I238)) ->  | N238: =IF(AND(F238=""),"",IF(AND(J238=""),"",F238-J238)) ->  | O238: =IF(AND(C238=""),"",N238-P238) ->  | P238: =IF(AND($Y$238=""),"",IF(AND(N238=""),"",ROUND(N238*$X$239%,0))) ->  | Q238: =IF(AND($Y$238=""),"",IF(AND(C238=""),"",IF(AND(O238=""),"",SUM(O238,P238)))) ->  | R238: =IF(AND(N238=""),"",IF(AND(Q238=""),"",N238-Q238)) ->  | X238: Sr. No. :- | Y238: =IF(AND(Master!B27="",Master!E27=""),"",20) -> 
A239: 2 | B239: =IFERROR(DATE(YEAR(B238),MONTH(B238)+1,DAY(B238)),"") ->  | C239: =IF(AND($Y$238=""),"",C238) ->  | D239: =IF(AND(C239=""),"",IF(AND($Y$238=""),"",ROUND(C239*Master!C$5%,0))) ->  | E239: =IF(AND(C239=""),"",IF(AND($Y$238=""),"",ROUND(C239*Master!H$5%,0))) ->  | G239: =IF(AND($Y$238=""),"",G238) ->  | H239: =IF(AND(G239=""),"",IF(AND($Y$238=""),"",ROUND(G239*Master!C$4%,0))) ->  | I239: =IF(AND(G239=""),"",IF(AND($Y$238=""),"",ROUND(G239*Master!H$4%,0))) ->  | K239: =IF(AND(C239=""),"",IF(AND(G239=""),"",C239-G239)) ->  | L239: =IF(AND(D239=""),"",IF(AND(H239=""),"",D239-H239)) ->  | O239: =IF(AND(C239=""),"",N239-P239) ->  | P239: =IF(AND($Y$238=""),"",IF(AND(N239=""),"",ROUND(N239*$X$239%,0))) ->  | Q239: =IF(AND($Y$238=""),"",IF(AND(C239=""),"",IF(AND(O239=""),"",SUM(O239,P239)))) ->  | R239: =IF(AND(N239=""),"",IF(AND(Q239=""),"",N239-Q239)) ->  | X239: =IF(ISNA(VLOOKUP($Y$238,Master!A$8:N$127,7,FALSE)),"",VLOOKUP($Y$238,Master!A$8:AH$127,7,FALSE)) -> 
A240: 3 | B240: =IFERROR(DATE(YEAR(B239),MONTH(B239)+1,DAY(B239)),"") ->  | C240: =IF(AND($Y$238=""),"",C239) ->  | D240: =IF(AND(C240=""),"",IF(AND($Y$238=""),"",ROUND(C240*Master!C$5%,0))) ->  | E240: =IF(AND(C240=""),"",IF(AND($Y$238=""),"",ROUND(C240*Master!H$5%,0))) ->  | G240: =IF(AND($Y$238=""),"",G239) ->  | H240: =IF(AND(G240=""),"",IF(AND($Y$238=""),"",ROUND(G240*Master!C$4%,0))) ->  | I240: =IF(AND(G240=""),"",IF(AND($Y$238=""),"",ROUND(G240*Master!H$4%,0))) ->  | K240: =IF(AND(C240=""),"",IF(AND(G240=""),"",C240-G240)) ->  | Q240: =IF(AND($Y$238=""),"",IF(AND(C240=""),"",IF(AND(O240=""),"",SUM(O240,P240)))) -> 
A242: TOTAL | C242: =IF(AND($Y$238=""),"",SUM(C238:C241)) ->  | D242: =IF(AND($Y$238=""),"",SUM(D238:D241)) ->  | R242: =IF(AND($Y$238=""),"",SUM(R238:R241)) -> 
E244: Name of Employee :- | J244: =IF(ISNA(VLOOKUP($Y$246,Master!A$8:N$127,2,FALSE)),"",VLOOKUP($Y$246,Master!A$8:AH$127,2,FALSE)) ->  | O244: POST:- | P244: =IF(ISNA(VLOOKUP($Y$246,Master!A$8:N$127,3,FALSE)),"",VLOOKUP($Y$246,Master!A$8:AH$127,3,FALSE)) -> 
A246: 1 | B246: =IFERROR(IF(ISNA(VLOOKUP(Y246,Master!A$8:N$127,8,FALSE)),"",VLOOKUP($Y246,Master!A$8:AH$127,8,FALSE)),"") ->  | C246: =IF(ISNA(VLOOKUP($Y$246,Master!A$8:N$127,5,FALSE)),"",VLOOKUP($Y$246,Master!A$8:AH$127,5,FALSE)) ->  | D246: =IF(AND(C246=""),"",IF(AND($Y$246=""),"",ROUND(C246*Master!C$5%,0))) ->  | E246: =IF(AND(C246=""),"",IF(AND($Y$246=""),"",ROUND(C246*Master!H$5%,0))) ->  | F246: =IF(AND(C246=""),"",SUM(C246:E246)) ->  | G246: =IF(ISNA(VLOOKUP($Y$246,Master!A$8:N$127,5,FALSE)),"",VLOOKUP($Y$246,Master!A$8:AH$127,5,FALSE)) ->  | H246: =IF(AND(G246=""),"",IF(AND($Y$246=""),"",ROUND(G246*Master!C$4%,0))) ->  | I246: =IF(AND(G246=""),"",IF(AND($Y$246=""),"",ROUND(G246*Master!H$4%,0))) ->  | J246: =IF(AND(C246=""),"",SUM(G246:I246)) ->  | K246: =IF(AND(C246=""),"",IF(AND(G246=""),"",C246-G246)) ->  | L246: =IF(AND(D246=""),"",IF(AND(H246=""),"",D246-H246)) ->  | M246: =IF(AND(E246=""),"",IF(AND(I246=""),"",E246-I246)) ->  | N246: =IF(AND(F246=""),"",IF(AND(J246=""),"",F246-J246)) ->  | O246: =IF(AND(C246=""),"",N246-P246) ->  | P246: =IF(AND($Y$246=""),"",IF(AND(N246=""),"",ROUND(N246*$X$247%,0))) ->  | Q246: =IF(AND($Y$246=""),"",IF(AND(C246=""),"",IF(AND(O246=""),"",SUM(O246,P246)))) ->  | R246: =IF(AND(N246=""),"",IF(AND(Q246=""),"",N246-Q246)) ->  | X246: Sr. No. :- | Y246: =IF(AND(Master!B28="",Master!E28=""),"",21) -> 
A247: 2 | B247: =IFERROR(DATE(YEAR(B246),MONTH(B246)+1,DAY(B246)),"") ->  | C247: =IF(AND($Y$246=""),"",C246) ->  | D247: =IF(AND(C247=""),"",IF(AND($Y$246=""),"",ROUND(C247*Master!C$5%,0))) ->  | E247: =IF(AND(C247=""),"",IF(AND($Y$246=""),"",ROUND(C247*Master!H$5%,0))) ->  | G247: =IF(AND($Y$246=""),"",G246) ->  | H247: =IF(AND(G247=""),"",IF(AND($Y$246=""),"",ROUND(G247*Master!C$4%,0))) ->  | I247: =IF(AND(G247=""),"",IF(AND($Y$246=""),"",ROUND(G247*Master!H$4%,0))) ->  | O247: =IF(AND(C247=""),"",N247-P247) ->  | P247: =IF(AND($Y$246=""),"",IF(AND(N247=""),"",ROUND(N247*$X$247%,0))) ->  | Q247: =IF(AND($Y$246=""),"",IF(AND(C247=""),"",IF(AND(O247=""),"",SUM(O247,P247)))) ->  | R247: =IF(AND(N247=""),"",IF(AND(Q247=""),"",N247-Q247)) ->  | X247: =IF(ISNA(VLOOKUP($Y$246,Master!A$8:N$127,7,FALSE)),"",VLOOKUP($Y$246,Master!A$8:AH$127,7,FALSE)) -> 
A248: 3 | B248: =IFERROR(DATE(YEAR(B247),MONTH(B247)+1,DAY(B247)),"") ->  | C248: =IF(AND($Y$246=""),"",C247) ->  | D248: =IF(AND(C248=""),"",IF(AND($Y$246=""),"",ROUND(C248*Master!C$5%,0))) ->  | E248: =IF(AND(C248=""),"",IF(AND($Y$246=""),"",ROUND(C248*Master!H$5%,0))) ->  | G248: =IF(AND($Y$246=""),"",G247) ->  | H248: =IF(AND(G248=""),"",IF(AND($Y$246=""),"",ROUND(G248*Master!C$4%,0))) ->  | I248: =IF(AND(G248=""),"",IF(AND($Y$246=""),"",ROUND(G248*Master!H$4%,0))) ->  | P248: =IF(AND($Y$246=""),"",IF(AND(N248=""),"",ROUND(N248*$X$247%,0))) ->  | Q248: =IF(AND($Y$246=""),"",IF(AND(C248=""),"",IF(AND(O248=""),"",SUM(O248,P248)))) -> 
A250: TOTAL | C250: =IF(AND($Y$246=""),"",SUM(C246:C249)) ->  | D250: =IF(AND($Y$246=""),"",SUM(D246:D249)) -> 
O252: SEAL AND SIGN OF DDO
B253: S.R. | I253: Date :
B254: For Copying And Necessary Action
A255: 1 | B255: Treasury Officer / Deputy treasury Officer
A256: 2 | B256: Related Employee Sh./Smt./Mis.
A257: 3 | B257: File Register
O258: SEAL AND SIGN OF DDO
A260: =A223 -> DA (55% to 58%) Drawn Statement | W260: =IF(ISNA(VLOOKUP($Y$3,Master!A$8:N$127,4,FALSE)),"",VLOOKUP($Y$3,Master!A$8:AH$127,4,FALSE)) -> 3 | X260: =IF(ISNA(VLOOKUP($Y$3,Master!A$8:N$127,6,FALSE)),"",VLOOKUP($Y$3,Master!A$8:AH$127,6,FALSE)) -> GPF-2004 | Y260: GPF-2004 | Z260: GPF | AA260: =IF(ISNA(VLOOKUP($Y$262,Master!A$8:N$127,7,FALSE)),"",VLOOKUP($Y$262,Master!A$8:AH$127,7,FALSE)) -> 
A261: =IF(AND(Master!C241=""),"",CONCATENATE("Office Of ",Master!C241)) ->  | X261: =IF(ISNA(VLOOKUP($Y$3,Master!A$8:N$127,8,FALSE)),"",VLOOKUP($Y$3,Master!A$8:AH$127,8,FALSE)) -> 45839 | Y261: YES
E262: Name of Employee :- | J262: =IF(ISNA(VLOOKUP($Y$262,Master!A$8:N$127,2,FALSE)),"",VLOOKUP($Y$262,Master!A$8:AH$127,2,FALSE)) ->  | O262: POST:- | P262: =IF(ISNA(VLOOKUP($Y$262,Master!A$8:N$127,3,FALSE)),"",VLOOKUP($Y$262,Master!A$8:AH$127,3,FALSE)) ->  | X262: Sr. No. :- | Y262: =IF(AND(Master!B29="",Master!E29=""),"",22) -> 
A264: Serial No. | B264: Month & Year | C264: Pay Due | G264: Pay Drawn | K264: Pay Difference | O264: Deducation | R264: To be paid in Cash Col. 14 form 18 | S264: Treasury Bill@ Voucher No.& Date
C265: Basic | D265: Dearness Allowance | E265: H.R.A. | F265: Total Col. 3 to 5 | G265: Basic | H265: Dearness Allowance | I265: H.R.A. | J265: Total Col. 7 to 9 | K265: Basic Pay | L265: Dearness Allowance | M265: H.R.A. | N265: Total Col. 11 to 13 | O265: GPF / GPF-2004 | P265: Income Tax / TDS | Q265: Total of Dedu ction
A266: 1 | B266: 2 | C266: 3 | D266: 4 | E266: 5 | F266: 6 | G266: 7 | H266: 8 | I266: 9 | J266: 10 | K266: 11 | L266: 12 | M266: 13 | N266: 14 | O266: 15 | P266: 17 | Q266: 18 | R266: 19 | S266: 20
A267: 1 | B267: =IFERROR(IF(ISNA(VLOOKUP(Y262,Master!A$8:N$127,8,FALSE)),"",VLOOKUP($Y262,Master!A$8:AH$127,8,FALSE)),"") ->  | C267: =IF(ISNA(VLOOKUP(Y262,Master!A$8:N$127,5,FALSE)),"",VLOOKUP($Y$262,Master!A$8:AH$127,5,FALSE)) ->  | D267: =IF(AND(C267=""),"",IF(AND($Y$262=""),"",ROUND(C267*Master!C$5%,0))) ->  | E267: =IF(AND(C267=""),"",IF(AND($Y$262=""),"",ROUND(C267*Master!H$5%,0))) ->  | F267: =IF(AND(C267=""),"",SUM(C267:E267)) ->  | G267: =IF(ISNA(VLOOKUP($Y$262,Master!A$8:N$127,5,FALSE)),"",VLOOKUP($Y$262,Master!A$8:AH$127,5,FALSE)) ->  | H267: =IF(AND(G267=""),"",IF(AND($Y$262=""),"",ROUND(G267*Master!C$4%,0))) ->  | I267: =IF(AND(G267=""),"",IF(AND($Y$262=""),"",ROUND(G267*Master!H$4%,0))) ->  | J267: =IF(AND(C267=""),"",SUM(G267:I267)) ->  | K267: =IF(AND(C267=""),"",IF(AND(G267=""),"",C267-G267)) ->  | L267: =IF(AND(D267=""),"",IF(AND(H267=""),"",D267-H267)) ->  | M267: =IF(AND(E267=""),"",IF(AND(I267=""),"",E267-I267)) ->  | N267: =IF(AND(F267=""),"",IF(AND(J267=""),"",F267-J267)) ->  | O267: =IF(AND(C267=""),"",N267-P267) ->  | P267: =IF(AND($Y$262=""),"",IF(AND(N267=""),"",ROUND(N267*AA$260%,0))) ->  | Q267: =IF(AND($Y$262=""),"",IF(AND(C267=""),"",IF(AND(O267=""),"",SUM(O267,P267)))) ->  | R267: =IF(AND(N267=""),"",IF(AND(Q267=""),"",N267-Q267)) -> 
A268: 2 | B268: =IFERROR(DATE(YEAR(B267),MONTH(B267)+1,DAY(B267)),"") ->  | C268: =IF(AND($Y$262=""),"",C267) ->  | D268: =IF(AND(C268=""),"",IF(AND($Y$262=""),"",ROUND(C268*Master!C$5%,0))) ->  | E268: =IF(AND(C268=""),"",IF(AND($Y$262=""),"",ROUND(C268*Master!H$5%,0))) ->  | F268: =IF(AND(C268=""),"",SUM(C268:E268)) ->  | G268: =IF(AND($Y$262=""),"",Arrear!C247) ->  | H268: =IF(AND(G268=""),"",IF(AND($Y$262=""),"",ROUND(G268*Master!C$4%,0))) ->  | I268: =IF(AND(G268=""),"",IF(AND($Y$262=""),"",ROUND(G268*Master!H$4%,0))) ->  | O268: =IF(AND(C268=""),"",N268-P268) ->  | P268: =IF(AND($Y$262=""),"",IF(AND(N268=""),"",ROUND(N268*AA$260%,0))) ->  | Q268: =IF(AND($Y$262=""),"",IF(AND(C268=""),"",IF(AND(O268=""),"",SUM(O268,P268)))) ->  | R268: =IF(AND(N268=""),"",IF(AND(Q268=""),"",N268-Q268)) -> 
A269: 3 | B269: =IFERROR(DATE(YEAR(B268),MONTH(B268)+1,DAY(B268)),"") ->  | C269: =IF(AND($Y$262=""),"",C268) ->  | D269: =IF(AND(C269=""),"",IF(AND($Y$262=""),"",ROUND(C269*Master!C$5%,0))) ->  | E269: =IF(AND(C269=""),"",IF(AND($Y$262=""),"",ROUND(C269*Master!H$5%,0))) ->  | F269: =IF(AND(C269=""),"",SUM(C269:E269)) ->  | G269: =IF(AND($Y$262=""),"",Arrear!C248) ->  | H269: =IF(AND(G269=""),"",IF(AND($Y$262=""),"",ROUND(G269*Master!C$4%,0))) ->  | I269: =IF(AND(G269=""),"",IF(AND($Y$262=""),"",ROUND(G269*Master!H$4%,0))) ->  | J269: =IF(AND(C269=""),"",SUM(G269:I269)) ->  | M269: =IF(AND(E269=""),"",IF(AND(I269=""),"",E269-I269)) ->  | N269: =IF(AND(F269=""),"",IF(AND(J269=""),"",F269-J269)) ->  | Q269: =IF(AND($Y$262=""),"",IF(AND(C269=""),"",IF(AND(O269=""),"",SUM(O269,P269)))) -> 
A271: TOTAL | C271: =IF(AND($Y$262=""),"",SUM(C267:C270)) ->  | D271: =IF(AND($Y$262=""),"",SUM(D267:D270)) -> 
E273: Name of Employee :- | J273: =IF(ISNA(VLOOKUP($Y$275,Master!A$8:N$127,2,FALSE)),"",VLOOKUP($Y$275,Master!A$8:AH$127,2,FALSE)) ->  | O273: POST:- | P273: =IF(ISNA(VLOOKUP($Y$275,Master!A$8:N$127,3,FALSE)),"",VLOOKUP($Y$275,Master!A$8:AH$127,3,FALSE)) -> 
... 763 more rows
